{"text_format":"1","workbook":"xlsx","n_sheets":1,"sheets":["Tabelle1"],"not_rendered":{"charts":0,"images":0,"macros":1,"external_links":0,"defined_names":70,"comments":1,"pivot_tables":0},"unopened":[],"bounds":{"document_bytes":16777216,"sheet_cells":100000,"rows_first":2000,"rows_last":500,"rows_between":2000,"halvings":0,"cell_chars":16384,"cell_head_chars":4096},"cells_cut":0,"cells_raw":0,"read":"whole","date_system":"1900"}

{"sheet":"Tabelle1","index":0,"n_rows":96,"n_cols":69,"rows_kept":96,"cut":false,"hidden":false,"merged":[]}
["OZ","Typ","Beschreibung","Langtext","Menge","Einheit","EP [EUR]","GP [EUR]","TB Anzahl","TB1 Ansprache","TB1 Bietertext","TB1 Absprache","TB2 Ansprache","TB2 Bietertext","TB2 Absprache","TB3 Ansprache","TB3 Bietertext","TB3 Absprache","TB4 Ansprache","TB4 Bietertext","TB4 Absprache","TB5 Ansprache","TB5 Bietertext","TB5 Absprache","TB6 Ansprache","TB6 Bietertext","TB6 Absprache","TB7 Ansprache","TB7 Bietertext","TB7 Absprache","TB8 Ansprache","TB8 Bietertext","TB8 Absprache","TB9 Ansprache","TB9 Bietertext","TB9 Absprache","TB10 Ansprache","TB10 Bietertext","TB10 Absprache","TB11 Ansprache","TB11 Bietertext","TB11 Absprache","TB12 Ansprache","TB12 Bietertext","TB12 Absprache","TB13 Ansprache","TB13 Bietertext","TB13 Absprache","TB14 Ansprache","TB14 Bietertext","TB14 Absprache","TB15 Ansprache","TB15 Bietertext","TB15 Absprache","TB16 Ansprache","TB16 Bietertext","TB16 Absprache","TB17 Ansprache","TB17 Bietertext","TB17 Absprache","TB18 Ansprache","TB18 Bietertext","TB18 Absprache","TB19 Ansprache","TB19 Bietertext","TB19 Absprache","TB20 Ansprache","TB20 Bietertext","TB20 Absprache"]
[null,null,"Kunststoffrasenarbeiten",null,null,null,null,{"$f":"H4+H27+H50+H73","v":0}]
[null,"I","Allgemeine Hinweise","Allgemeine Hinweise\nAuf vier Sportanlagen sollen die Kunstrasen erneuert werden.\n\n\n1. \n\nSportanlage Am Krausen Bäumchen\nRellinghauserstraße 321\n45136 Essen\n\nSpielfeldgröße Großspielfeld \nNetto-Spielfläche neu ca. 98,00 x 64,00 m (102,20 x  67,00 m brutto)\n\n\nTagesberichte sind bautäglich zu führen und von der Bauleitung regelmäßig zu unterzeichnen.\n \nDie Lieferscheine der Schüttgüter sind mit Datum, Wiegescheinnummer und Nettogewicht in die Tagesberichte einzutragen und von der Bauleitung gegenzeichnen zu lassen.\n \nDie Baustelle kann nur über die Zufahrt von der Straße Rellinghauserstraße bzw. Elbestraße angedient werden.\nDie Zufahrtmöglichkeiten sind eingeschränkt. Dem Bieter wird empfohlen die Örtlichkeit vor Angebotsabgabe zu besichtigen.\n \nDie Arbeiten sind eng mit der Bauleitung abzustimmen. Sämtliche Arbeiten sind im vorgegebenem Zeitraum  durchzuführen.\n \nEine Zwischenlagerung von Baustoffen auf dem Gesamtsportgelände ist eingeschränkt möglich.\n \nFür die Lagerung und Benutzung ist eine Absprache mit der  Bauleitung (Jörn Lammers;Telefon 0201-8852212, Rene Deilmann Telefon 0201-8852341) nach Auftragserteilung erforderlich.\n \nIn die Einheitspreise ist die Transportstrecke der Materialien bis zu den Spielfeldern einzurechnen.\n \n \nAusführungstermin\n\nBaubeginn:\t     13.07.2026\n\nFertigstellung:\t     24.08.2026\n\n\n\n\n2. \n\nSportanlage Buderusstraße\nBuderusstraße 20\n45307 Essen\n\nSpielfeldgröße Großspielfeld \nNetto-Spielfläche neu  ca. 100 x 64 m (104 x 68m brutto)\n\n\nTagesberichte sind bautäglich zu führen und von der Bauleitung regelmäßig zu unterzeichnen.\n \nDie Lieferscheine der Schüttgüter sind mit Datum, Wiegescheinnummer und Nettogewicht in die Tagesberichte einzutragen und von der Bauleitung gegenzeichnen zu lassen.\n \nDie Baustelle kann nur über die Zufahrt von der Straße \"Buderustraße\" oder Kiwittstr.  angedient werden.\nDem Bieter wird empfohlen die Örtlichkeit vor Angebotsabgabe zu besichtigen.\n \nDie Arbeiten sind eng mit der Bauleitung abzustimmen. Sämtliche Arbeiten sind im vorgegebenem Zeitraum zu erledigen. Nach dem Baubeginn sind die Arbeiten ohne Unterbrechung innerhalb von 4 Wochen durchzuführen.\n \nEine Zwischenlagerung von Baustoffen auf dem Gesamtsportgelände ist eingeschränkt möglich.\n \nFür die Lagerung und Benutzung ist eine Absprache mit der  Bauleitung (Jörn Lammers;Telefon 0201-8852212, Rene Deilmann Telefon 0201-8852341) nach Auftragserteilung erforderlich.\n \nIn die Einheitspreise ist die Transportstrecke der Materialien bis zu den Spielfeldern einzurechnen.\n \n \nAusführungstermin\n\nBaubeginn:\tca. 08.06.2026\n\nFertigstellung:\t      13.07.2026\n\n\n\n\n3. \n\nSportanlage Lichtenhorst\nLichtenhorst, 45356 Essen\n\n\nSpielfeldgröße Großspielfeld (im Stadion) \nNetto-Spielfläche neu ca. 100 x 60 m (104,20 x 63,04 m brutto)\n\n\nTagesberichte sind bautäglich zu führen und von der Bauleitung regelmäßig zu unterzeichnen.\n \nDie Lieferscheine der Schüttgüter sind mit Datum, Wiegescheinnummer und Nettogewicht in die Tagesberichte einzutragen und von der Bauleitung gegenzeichnen zu lassen.\n \nDie Baustelle kann nur über die Zufahrten von der Straße \"Lichtenhorst.\" angedient werden.\nDie Zufahrtmöglichkeiten sind eingeschränkt. Dem Bieter wird empfohlen die Örtlichkeit vor Angebotsabgabe zu besichtigen.\n \nDie Arbeiten sind eng mit der Bauleitung abzustimmen. Sämtliche Arbeiten sind im vorgegebenem Zeitraum zu erledigen. Nach dem Baubeginn sind die Arbeiten ohne Unterbrechung innerhalb von 4 Wochen durchzuführen.\n \nEine Zwischenlagerung von Baustoffen auf dem Gesamtsportgelände ist eingeschränkt möglich.\n \nFür die Lagerung und Benutzung ist eine Absprache mit der  Bauleitung (Jörn Lammers;Telefon 0201-8852212, Rene Deilmann Telefon 0201-8852341) nach Auftragserteilung erforderlich.\n \nIn die Einheitspreise ist die Transportstrecke der Materialien bis zu den Spielfeldern einzurechnen.\n \n \nAusführungstermin\n\nBaubeginn:\tca. 06.07.2026\n\nFertigstellung:\t      07.08.2026\n\n\n\n\n4. \n\nSportanlage Im Löwental\nIm Löwental 35\n45239 Essen \n\n\nGroßspielfeld\nNetto-Spielfläche neu ca. 105 x 68 m (112,6 x 72,6m brutto)\n\nSegmentbogen\n1029m²\n\nKleinspielfeld\nNetto-Spielfläche neu ca.   68 x 33,50 m (73,35 x 36,5 brutto)\n\n\nTagesberichte sind bautäglich zu führen und von der Bauleitung regelmäßig zu unterzeichnen.\n \nDie Lieferscheine der Schüttgüter sind mit Datum, Wiegescheinnummer und Nettogewicht in die Tagesberichte einzutragen und von der Bauleitung gegenzeichnen zu lassen.\n \nDie Baustelle kann nur über die Zufahrt von der Straße \"Im Löwental.\" angedient werden.\nDie Zufahrtmöglichkeiten sind eingeschränkt. Dem Bieter wird empfohlen die Örtlichkeit vor Angebotsabgabe zu besichtigen.\n \nDie Arbeiten sind eng mit der Bauleitung abzustimmen. Sämtliche Arbeiten sind im vorgegebenem Zeitraum zu erledigen. Nach dem Baubeginn sind die Arbeiten ohne Unterbrechung innerhalb von 4 Wochen durchzuführen.\n \nEine Zwischenlagerung von Baustoffen auf dem Gesamtsportgelände ist eingeschränkt möglich.\n \nFür die Lagerung und Benutzung ist eine Absprache mit der  Bauleitung (Jörn Lammers;Telefon 0201-8852212, Rene Deilmann Telefon 0201-8852341) nach Auftragserteilung erforderlich.\n \nIn die Einheitspreise ist die Transportstrecke der Materialien bis zu den Spielfeldern einzurechnen.\n \n \nAusführungstermin\n\nBaubeginn:\tca. 06.07.2026\n\nFertigstellung:\t      17.08.2026\n\n\nDas Leistungsverzeichnis ist in 4 Teillose aufgeteilt, die separat abgerechnet werden. Es muss mindestens 1 Teillos angeboten werden. Es können auch mehrere oder alle Teillose angeboten werden. \nEs sind die Ausführungs-/Fertigstellungsfristen zu beachten!\nDer Auftraggeber behält sich eine losweise Vergabe nach den für ihn günstigsten/wirtschaftlichsten Gesichtspunkten vor.\n\n\nHinweistext Bauausführung Kunststoffrasen\n\n1. Alle in der Ausschreibung geforderten Nachweise,\n    Berechnungen etc. sind mit der Beantragung der\n    Abnahme gegliedert nach\n    - Hersteller,\n    - Typ/Bauart,\n    - Bezugsquelle,\n    einzureichen. Eine produktbezogene Nutzungs-\n    und Pflegeanleitung ist zum gleichen Zeitpunkt\n    beizufügen.\n\n2. Die Verfüllung des Kunststoffrasens mit dem\n    Quarzsand darf erst nach Überprüfung alle Nähte\n    und Freigabe durch die Bauleitung erfolgen.\n\n3. Beim Einbau des Kunststoffrasens sind Einklebearbeiten \n    des Kunstrasens  für die Bereiche der Spielfelder in den\n    Einheitspreis einzukalkulieren\n    Einkleben von Kunststoffgranulat in die Deckel:\n    4 Stück Eckfahnenhülsen,\n    4 Stück Torhülsen.\n\n\nVorbemerkungen für allgemeine technische Vorschriften der Ausschreibung von Kunststoffrasenflächen für Sportfreianlagen\n \nFür den Aufbau und Ausführung der Kunststoffrasenflächen ist der aktuelle Stand der Technik anzuwenden, der in DIN EN 15330, DIN 18035-7 und den zusätzlichen Anforderungen der RAL Güte- und Prüfbestimmungen GZ 944 geregelt ist.\n \nDie Nachweise über Produktidentifikation nach DIN EN 15330 Abs. 4.8 sowie über In-Situ-Prüfungen Abs. 5 werden durch die Güteüberwachung ersetzt. Die RAL Gütesicherung besteht aus dem Kunststoffrasen-Komplettsystem RAL GZ 944/1 und fünf Einzelmodulen RAL GZ 944/2 bis RAL GZ 944/6. Diese werden hiermit vertraglich vereinbart.\n \nFür das angebotene Kunststoffrasen-Komplettsystem ist mit dem Gütezeichen GZ 944/1 zusammen mit den Gütezeichen für die Systembaumodule des\n \nGZ 944/2 elastische Tragschicht oder Elastikschicht,\nGZ 944/3 Kunststoffrasenbelag incl. Sandfüllung,\nGZ 944/4 natürliche elastische Füllstoffe,\nGZ 944/5 Einbau des Kunststoffrasenbelages,\nGZ 944/6 Pflege\noder gleichwertig,\n \ndie Eignung sowie die Umweltverträglichkeit nachzuweisen.\nDer Nachweis für die Qualitätsüberwachung richtet sich nach den allgemeinen und besonderen Prüfbestimmungen gemäß RAL-GZ 944 oder gleichwertig.\n \nFür die Erstprüfungen und die jährliche Fremdüberwachung werden nur akkreditierte Prüflaboratorien nach DIN EN ISO 17025 und Akkreditierung durch Akkreditierungsstellen (z. B. DAkkS oder gleichwertige) mit entsprechender Registriernummer anerkannt.\n \nDer Prüfbericht über die Typenprüfungen im Labor nach DIN EN 15330-1 und die Eignungsprüfungen nach DIN 18035-7 und der Nachweis über die Qualitätsüberwachung sind mit dem Angebot vorzulegen."]
["01","1","Teillos 1-Am Krausen Bäumchen",null,null,null,null,{"$f":"SUM(H6:H20)+SUM(H23:H26)","v":0}]
["01.1","2","Kunststoffrasenarbeiten",null,null,null,null,{"$f":"SUM(H6:H20)","v":0}]
["01.1.010"," ","Vorh. Kunststoffrasen einschl. Sandbefüllung ausbauen und entsorgen","Vorhandenen Kunststoffrasen einschl. Sandbefüllung und Kunststoffgranulatbefüllung ausbauen, laden und fachgerecht einer Wiederverwendung / Recycling zuführen.\nDer Nachweis über ein Recycling mit der Trennung der Infillmaterialien, des Altkunstrasens sowie einer Nachnutzung ist nachzuweisen.\n\nEingebautes Produkt:Desso Division\nProdukt mit Prüfzertifikat, Baujahr ca. 2011\nUrsprüngliche Sandverfüllung ca. 18 kg/m² Quarzsand\nUrsprüngliche Granulatverfüllung ca. 4 kg/m² TPE Neugranulat\nErsthersteller: Desso",6847.4,"m2",null,{"$f":"ROUND(E6*G6,2)","v":0},0]
["01.1.020"," ","vorh. elastische Tragschicht schneiden","Vorh. elastische Tragschicht im Bereich der Spielfelder an beanspruchten Stellen schneiden.",300,"m",null,0,0]
["01.1.030"," ","Vorh. elastische Tragschicht, Stärke 3,5 cm mit Splittanteil  ausbauen","Vorh. elastische Tragschicht, Stärke 3,5 cm, mit Splittanteil, Schnitt in der Vorposition, mit Anhaftungen vom Schotter an der Unterseite ausbauen, laden, transportieren und fachgerecht entsorgen.",800,"m2",null,0,0]
["01.1.040"," ","Vorhandene elastische Tragschicht säubern","Vorhandene elastische Tragschicht Großspielfeld, 35 mm stark, mit Splittanteil, von Verunreinigungen wie Sand- und Gummigranulatresten säubern und die Ebenflächigkeit zusammen mit der Bauleitung mit einer 4,00 m Latte örtlich kontrollieren.",6847.4,"m2",null,0,0]
["01.1.050"," ","Vorhandene elastische Tragschicht stabilisieren","Vorhandene elastische Tragschicht, im Bereich Großspielfeld, in den besonders stark beanspruchten Bereichen wie Torräume und Elfmeterpunkte mit PU-Bindemittel stabilisieren,\nAuftragsmenge ca. 300 g/m².\nAusführung nur nach Aufforderung durch die Bauleitung.\nAbrechnung nach Bearbeitungsfläche.",3000,"m2",null,0,0]
["01.1.060"," ","Vorhandene Unebenheiten in der elastischen Tragschicht ausgleichen","Vorhandene Unebenheiten in der elastischen Tragschicht Großspielfeld mit einem Quarzsand-Polyurethan-Gemisch nach örtlicher Festlegung ausgleichen.\nAbrechnung nach Bearbeitungsmasse und Vorlage der\nLieferscheine zum Nachweis Materialverbrauch.",4.5,"t",null,0,0]
["01.1.070"," ","Elastikschicht für verfüllten Kunststoffrasen Großspielfeld einbauen","Gebundene-elastische Tragschicht für Kunststoffrasen Großspielfeld (Fußball), wasserdurchlässig auf Tragschicht ohne Bindemittel, im Ortseinbau gemäß DIN 18035-7 wie folgt einbauen.\n\nBindemittel: Polyurethan\n\nElastische Zuschlagstoffe: Elastomere in Granulat- und/oder Faserform\n \nMineralische Gesteinskörnung:\nWiderstand gegen Frost, Kategorie F4 nach TL Gestein StB\n\nTorsionsfestigkeit: gemäß DIN 18035-7\n \nKraftabbau (23 - 40 Grad C): gemäß DIN 18035-7\nFußball 55 % bis 65 %\n\nNenndicke: mindestens 35 mm +/- 15 %\n\nWasserdurchlässigkeit: Wasserinfiltrationsrate\n>= 360 mm/h (>= 2 Liter Prüfflüssigkeit müssen in 5 Minuten abgeflossen sein)\n\nEbenheit: Stichmaße als Grenzwert bei Messpunktabstand\n1 m <=   4 mm\n4 m <= 10 mm\n \nAngebotenes Produkt:\n \n. . . . . . . . . . . . . . . . . . . . . . . . . . . .\n(vom Bieter einzutragen)\n'..........'\n \nHersteller:\n \n. . . . . . . . . . . . . . . . . . . . . . . . . . . .\n(vom Bieter einzutragen)\n'........' \n\nEignungsprüfung (Laborprüfung) nach DIN 18035-7\n \nPrüflabor:\n \n. . . . . . . . . . . . . . . . . . . . . . . . . . . .\n(vom Bieter einzutragen)\n'..........'\u000b \nDIN EN ISO/IEC 17025-Registriernummer:\n \n. . . . . . . . . . . . . . . . . . . . . . . . . . . .\n(vom Bieter einzutragen)\n'..........'\u000b \nPrüfzeugnisnummer:\n \n. . . . . . . . . . . . . . . . . . . . . . . . . . . .\n(vom Bieter einzutragen)\n'..........'\u000b \nDatum:\n \n. . . . . . . . . . . . . . . . . . . . . . . . . . . .\n(vom Bieter einzutragen)\n'..........'\u000b \nQualitätsüberwachung der Elastikschicht gemäß DIN 18035-7 ist durch RAL oder gleichwertig nachzuweisen.\nGütenachweis nach RAL 944/2 (Elastikschicht)\n \nPrüflabor:\n \n. . . . . . . . . . . . . . . . . . . . . . . . . . . .\n(vom Bieter einzutragen)\n'..........'\u000b \nDIN EN ISO/IEC 17025-Registriernummer:\n \n. . . . . . . . . . . . . . . . . . . . . . . . . . . .\n(vom Bieter einzutragen)\n'..........'\u000b \nGütezeichennummer:\n \n. . . . . . . . . . . . . . . . . . . . . . . . . . . .\n(vom Bieter einzutragen)\n'..........'\u000b \nGütezeichen gültig bis:\n \n. . . . . . . . . . . . . . . . . . . . . . . . . . . .\n(vom Bieter einzutragen)\n'..........'",800,"m2",null,0,10,null,null,"\n",null,null,null,null,null,"\n",null,null,"\n",null,null,"\n",null,null,"\n",null,null,"\n",null,null,"\n",null,null,"\n","\n"]
["01.1.080"," ","Ansatzkante reinigen","Ansatzkante vorhandene elastische Tragschicht Großspielfeld an vorhandener Rinnen- und Kantensteineinfassung von Unkrautbewuchs reinigen.\nDauerunkräuter wie Disteln und Gehölzsämlinge sind einschl. Wurzeln zu entfernen.\nDas Reinigungsgut ist zu laden und abzufahren.",370,"m",null,0,0]
["01.1.090"," ","Kunststoffrasen einbauen","Kunststoffrasen mit Sand gefüllter Polschicht gemäß DIN EN 15330-1, in Anlehnung an Typ 5, liefern und gemäß RAL - GZ 944/3 und 944/5 im Bereich Großspielfeld einbauen.\n \nBei der Verlegung des Kunststoffrasens ist darauf zu achten, dass die Fugenbreite zwischen den einzelnen Bahnen bzw. zwischen eingefügter Markierung und Belag maximal eine Tuftgassenbreite betragen darf.\nDie Breite des Nahtsicherungsbandes muss mindestens\n30 cm betragen und den Nahtbereich etc. gleichmäßig erfassen.\n \nVor dem Ausbringen des Kunststoffrasens ist die ET-Schicht bzw. Elastikschicht von Laub etc. zu reinigen.\nDer Einheitspreis gilt einschl. der erforderlichen Nachbesandung bis zur endgültigen Füllhöhe.\n\nPolmaterial:\tgewünscht ist ein Produkt mit\n\t2 unterschiedlichen Garnstärken und\n\tGarnfunktionen\n\n\tSystem 1: Rasengarn\n\t100 % Polyethylen\n\t6 einzeln extrudierte Monofilamente\n\tohne Fibrillierung, Faserform gerade\n\tDicke: mind. 360 μm\n\tGarngewicht: ca. 13.000 dtex\n\n\tSystem 2: Stützgarn\n\t100 % Polyethylen-Monofilament\n\t4 einzeln extrudierte Monofilamente\n\tohne Fibrillierung,\n\tFaserform gekräuselt,\n\tDicke: mind. 250 μm\n\tGarngewicht: ca. 8.000 dtex\n\n\tGarngewicht gesamt: ca. 21.000 dtex\n\n\tGarneinsatzgewicht: min. 1.590 g/m²\n\nFarbe:\tBiColor\n\nTrägermaterial 1:\t100 %PP-Bändchengewebe, UV-stabil\nTrägermaterial 2:\tPP/PES-Glas-Stabilisierungsträger\n \nRückenausstattung:\n\tLatex- oder Polyurethan-Beschichtung,\n\t>/= 1.000 g/m²\n \nNoppenschenkellänge über Grund:\n\tca. 40 mm\n\nStichzahl:\tca. 18 Stück pro 10 cm\n\nTeilung:\t3/8\"\n\nFüllmaterial:\tSandfüllung in 2 Lagen\n\n\t1. Lage:\n\tQuarzsand, hydroklassiert, 0,3-0,8 mm,\n\tca. 23 kg/m²\n\n\t2. Lage:\n\tSand\n\trundkörnig\n\thydroklassiert,\n\t0,3 - 1,25 m, ca. 8 kg/m²\n \nAngebotenes Produkt Kunststoffrasen:\n \n. . . . . . . . . . . . . . . . . . . . . . . . . . . .\n(vom Bieter einzutragen)\n'..........'\u000b \nHersteller:\n \n. . . . . . . . . . . . . . . . . . . . . . . . . . . .\n(vom Bieter einzutragen)\n'..........'\u000b \nVerlegung durch:\n \n. . . . . . . . . . . . . . . . . . . . . . . . . . . .\n(vom Bieter einzutragen)\n'..........'\u000b \nSystem 1: Rasengarn\nBändchendimension nach RAL GZ 944 Anlage C Tab.1 Zeile 10 oder gleichwertig\n \nmittlere Faserdicke:\n \n. . . . . . . . . . . . . . . . . . . . . . . . . . . .\n(vom Bieter einzutragen)\n'..........'\u000b \nGarngewicht Einzelbändchen:\n \n. . . . . . . . . . . . . . . . . . . . . . . . . . . .\n(vom Bieter einzutragen)\n'..........'\u000b \nQuerschnittsfläche:\n \n. . . . . . . . . . . . . . . . . . . . . . . . . . . .\n(vom Bieter einzutragen)\n'..........'\u000b \nGarngewicht:\n \n. . . . . . . . . . . . . . . . . . . . . . . . . . . .\n(vom Bieter einzutragen)\n'..........'\u000b \n \nSystem 2: Stützgarn\nBändchendimension nach RAL GZ 944 Anlage C Tab.1 Zeile 10 oder gleichwertig\n \nmittlere Faserdicke:\n \n. . . . . . . . . . . . . . . . . . . . . . . . . . . .\n(vom Bieter einzutragen)\n'..........'\u000b \nGarngewicht Einzelbändchen:\n \n. . . . . . . . . . . . . . . . . . . . . . . . . . . .\n(vom Bieter einzutragen)\n'..........'\u000b \nQuerschnittsfläche:\n \n. . . . . . . . . . . . . . . . . . . . . . . . . . . .\n(vom Bieter einzutragen)\n'..........'\u000b \nGarngewicht:\n \n. . . . . . . . . . . . . . . . . . . . . . . . . . . .\n(vom Bieter einzutragen)\n'..........'\u000b \nZusätzliches PE/PES Glasstabilisierungsgewebe vorhanden: ja / nein\n \n. . . . . . . . . . . . . . . . . . . . . . . . . . . .\n(vom Bieter einzutragen)\n'..........'\u000b \nErstmalige Eignungsprüfung nach DIN EN 15330\n \nPrüflabor:\n \n. . . . . . . . . . . . . . . . . . . . . . . . . . . .\n(vom Bieter einzutragen)\n'..........'\u000b \nPrüfzeugnisnummer:\n \n. . . . . . . . . . . . . . . . . . . . . . . . . . . .\n(vom Bieter einzutragen)\n'..........'\u000b \nDatum:\n \n. . . . . . . . . . . . . . . . . . . . . . . . . . . .\n(vom Bieter einzutragen)\n'..........'\u000b \nJährliche Gütesicherung des Kunstrasensystems ist\ndurch die aktuellen RAL-Gütezeichen 944/1 bis 944/5 nachzuweisen.\n \nRAL 944/1 Gesamtsystem\n \nPrüflabor:\n \n. . . . . . . . . . . . . . . . . . . . . . . . . . . .\n(vom Bieter einzutragen)\n'..........'\u000b \nGütezeichennummer:\n \n. . . . . . . . . . . . . . . . . . . . . . . . . . . .\n(vom Bieter einzutragen)\n'..........'\u000b \nGütezeichen gültig bis:\n \n. . . . . . . . . . . . . . . . . . . . . . . . . . . .\n(vom Bieter einzutragen)\n'..........'\u000b \nRAL 944/3 Einzelmodul Kunstrasen\n \nHersteller:\n \n. . . . . . . . . . . . . . . . . . . . . . . . . . . .\n(vom Bieter einzutragen)\n'..........'\u000b \nPrüflabor:\n \n. . . . . . . . . . . . . . . . . . . . . . . . . . . .\n(vom Bieter einzutragen)\n'..........'\u000b \nGütezeichennummer:\n \n. . . . . . . . . . . . . . . . . . . . . . . . . . . .\n(vom Bieter einzutragen)\n'..........'\u000b \nGütezeichen gültig bis:\n \n. . . . . . . . . . . . . . . . . . . . . . . . . . . .\n(vom Bieter einzutragen)\n'..........'\u000b \nRAL 944/4 Einzelmodul natürlicher elastischer Füllstoff\n \nProduktbezeichnung:\n \n. . . . . . . . . . . . . . . . . . . . . . . . . . . .\n(vom Bieter einzutragen)\n'.........'\u000b \nSchüttgewicht:\n \n. . . . . . . . . . . . . . . . . . . . . . . . . . . .\n(vom Bieter einzutragen)\n'.........'\u000b \nHersteller:\n \n. . . . . . . . . . . . . . . . . . . . . . . . . . . .\n(vom Bieter einzutragen)\n'.........'\u000b \nPrüflabor:\n \n. . . . . . . . . . . . . . . . . . . . . . . . . . . .\n(vom Bieter einzutragen)\n'.........'\u000b \nGütezeichennummer:\n \n. . . . . . . . . . . . . . . . . . . . . . . . . . . .\n(vom Bieter einzutragen)\n'.........'\u000b \nGütezeichen gültig bis:\n \n. . . . . . . . . . . . . . . . . . . . . . . . . . . .\n(vom Bieter einzutragen)\n'.........'\u000b \nRAL 944/5 Einzelmodul Verlegung\n \nVerlegebetrieb:\n \n. . . . . . . . . . . . . . . . . . . . . . . . . . . .\n(vom Bieter einzutragen)\n'..........'\u000b \nPrüflabor:\n \n. . . . . . . . . . . . . . . . . . . . . . . . . . . .\n(vom Bieter einzutragen)\n'..........'\u000b \nGütezeichennummer:\n \n. . . . . . . . . . . . . . . . . . . . . . . . . . . .\n(vom Bieter einzutragen)\n'..........'\u000b \nGütezeichen gültig bis:\n \n. . . . . . . . . . . . . . . . . . . . . . . . . . . .\n(vom Bieter einzutragen)\n'...........'",6847.4,"m2",null,0,32,null,null,"\n",null,null,"\n",null,null,"\n",null,null,"\n",null,null,"\n",null,null,"\n",null,null,"\n",null,null,"\n",null,null,"\n",null,null,"\n",null,null,"\n",null,null,"\n",null,null,"\n",null,null,"\n",null,null,"\n",null,null,"\n",null,null,"\n",null,null,"\n",null,null,"\n",null,null,"\n"]
["01.1.100"," ","Linierung Großspielfeld","Linierung für Großspielfeld gemäß den Vorschriften des DFB fachgerecht einmessen und in den Kunststoffrasenbelag einarbeiten.\nDie Linierung an den Stirnseiten ist einzutuften, die übrigen Linien sind dauerhaft einzukleben.\nElfmeterpunkt eingetuftet in 1,50 x 1,50 m Kunstrasenstück.\nMaterial:\tentsprechend dem Gesamtbelag.\nFarbe:\tweiß.\nBreite:\t12 cm.",730,"m",null,0,0]
["01.1.110"," ","Markierung Jugendfußball auf Großspielfeld","Zusätzliche Markierung auf dem Großspielfeld nach Herstellervorschrift durchführen.\nGestrichelte Linien werden durchgehend gemessen.\nKurze Striche unter 100 cm werden mit je 100 cm ge-\nmessen. Der Einheitspreis gilt einschl. der erforder-\nlichen Einmessung.\n\nMaterial:\twie Position Kunststoffrasen.\n\nArt der Markierung:\tJugendfußball gemäß den Vor-\n\tschriften des DFB fachgerecht\n\teinmessen und in den Belag ein-\n\tgetuftet und teilweise eingeklebt.\n\nFarbe:\tblau.\n\nLinienbreite:\t5 cm.",20,"m",null,0,0]
["01.1.120"," ","Alphasand als Reservematerial","Alphasand als Reservematerial, in Säcken verpackt, in Abstimmung mit der Bauleitung zum Bauhof\nHallostr. 50; 45141 Essen liefern und gegen Quittung abladen.\nZusammensetzung: wie Pos. Kunststoffrasen.\nAnforderungen: wie Pos. Kunststoffrasen.\nKorngröße: wie Pos. Kunststoffrasen.",500,"kg",null,0,0]
["01.1.130"," ","Quarzsand als Reservematerial","Quarzsand als Reservematerial in Abstimmung mit\nder Bauleitung in Säcken zu je 25 kg frei Bauhof\nHallostr. 50; 45141 Essen liefern, gegen Quittung abladen und innerhalb des Bauhofs transportieren.\nTransportweg: bis 500 m.\nZusammensetzung: wie Pos. Kunststoffrasen.\nAnforderungen: wie Pos. Kunststoffrasen.\nKorngröße: wie Pos. Kunststoffrasen.",500,"kg",null,0,0]
["01.1.140"," ","Fußballtor (5,00*2,00 m) aus Aluminium liefern und aufstellen","Jugend-Fußballtor aus Aluminium,\nfreistehend, TÜV geprüft mit TÜV-Zertifikat\nGröße der Tore 5,00m x 2,00m mit ovalem \nBodenrahmen 1,50m\nobere Ausladung:\t0,80m\u000buntere Ausladung:\t1,50m\nIn einem Stück verschweißt. Netzbügel 60 x mind 3 mm.\nMit eingefräster Netzaufhängung im Tor- und Bodenrahmen, Netzhaken 6mm\nTorbügel in den Tor- und Bodenrahmen eingelassen, Tragegriffe,\nVerstärkerprofile über die Eckpunkte.\nBodenrahmen mit seitlichen Tragegriffen.\nEinzelgewichte mit einem Gesamtgewicht von 160 kg zur festen Montage am hinteren Bodenrahmen und 4 Stück vollausgeschäumte Lufträder je Tor.\nAusführung als vollausgeschäumte Räder.\nJugendtor der Breite nach fahrbar.\nJugendtornetze aus Polypropylen 4 mm\nFarbe: weiß\nliefern, aufstellen.\nAngebotenes Produkt\n\n...................................\nvom Bieter einzutragen.\n'..........'",2,"St",null,0,1]
["01.1.150"," ","Fußballtor (7,32 x 2,44 m) aus Aluminium","Fußballtor (7,32 x 2,44 m) aus Aluminium\nfür die Montage in Bodenhülsen,\nmit Netzbügel oben (keine Netzstangen!), \nTorrahmen mit verschweißten Gehrungen. \nProfil : 100 x 120 mm\nWandstärke: 2,5 mm \nFarbe: weiß.\n\nMit Sicherheits-Netzaufhängung TÜV-Zertifikat und \nGS-Zeichen nach DIN 748 einschließlich:\npassender Abdichtungsmanschetten für die Pfosten \nzur Verhinderung des Eindringens von Feinpartikeln \nzwischen Bodenhülse und Torpfosten.\nMaterial: Aluminium, ca. 8 mm stark,\n in den Torpfosten eingelassen.\n\nEinschließlich Bodenrahmen aus Aluminium, \naus Quadratprofil mit abgerundeten Kanten, \nin einem Stück verschweißt.\n\nAusladung verstellbar von 1,50 bis 2,00 m, hochklappbar. \nGelenkstück in den Pfosten eingearbeitet,\nmit integrierter Sicherheits-Netzaufhängung im Profil.\n\nKunststoffummanteltes Stahlseil zur Netzbefestigung \neinschl. aller Befestigungs-Kleinteile, passend zum \nBodenrahmen.\n\nEinschließlich:\nFußballtornetz aus Polypropylen 4 mm\nMaße: passend zu dem beschriebenen Tor,\nFarbe: nach Wunsch des Vereins - Abstimmung vor \nBestellung!\n\nLiefern und in vorhandene Hülsen einbauen.\nAngebotenes Produkt\n\n...................................\nvom Bieter einzutragen.\n'..........'",2,"St",null,0,1]
["01.2","2","Stundenlohnarbeiten","Stundenlohnarbeiten",null,null,null,{"$f":"SUM(H23:H26)","v":0}]
["01.2.010","I","Anmerkungen","In den nachfolgend genannten Positionen Stundenlohn-\narbeiten sind sämtliche Aufwendungen für Einsatz, Betriebs- und Gerätevorhaltekosten und die Kosten für das Bedienungspersonal enthalten.\n \nAbgerechnet wird nach den tatsächlich geleisteten\nArbeits- bzw. Einsatzstunden.\n \nStundenlohnarbeiten dürfen nur auf Anordnung des\nAuftraggebers durchgeführt werden. Nachweise über\nStundenlohnarbeiten sind spätestens am darauffolgenden\nTage der Bauleitung in zweifacher Ausfertigung zur\nAnerkennung vorzulegen.\n \nAuf den Stundenlohnzettel hat der Auftragnehmer die\nLeistungen der einzelnen Arbeiter getrennt nach\nBerufsgruppen gesondert aufzuführen. Stellt sich bei\nder Rechnungsprüfung oder bei der späteren Nach-\nprüfung heraus, dass die im Stundenlohn abgerechnete Leistung bereits zu anderen Vertragsleistungen gehört, so werden die Stundenlohnarbeiten nicht vergütet, auch wenn die Stundenlohnzettel schriftlich anerkannt worden sind.",null,null,null,null,0]
["01.2.010"," ","Facharbeiter","Facharbeiter für Sonderarbeiten nach Angabe der Bauleitung.",5,"h",null,{"$f":"ROUND(E23*G23,2)","v":0},0]
["01.2.020"," ","Arbeiter","Arbeiter für Sonderarbeiten wie vor.",5,"h",null,{"$f":"ROUND(E24*G24,2)","v":0},0]
["01.2.030"," ","Radlader einschl. Fahrer","Radlader einschl. Fahrer, über 18 bis 37 KW,\nfür Sonderarbeiten wie vor.",5,"h",null,{"$f":"ROUND(E25*G25,2)","v":0},0]
["01.2.040"," ","LKW einschl. Fahrer","LKW einschl. Fahrer, Nutzlast über 5 bis 8 t für Sonderarbeiten wie vor.",5,"h",null,{"$f":"ROUND(E26*G26,2)","v":0},0]
["02","1","Teillos 2-Großspielfeld Buderusstraße",null,null,null,null,{"$f":"SUM(H29:H43)+SUM(H46:H49)","v":0}]
["02.1","2","Kunststoffrasenarbeiten",null,null,null,null,{"$f":"SUM(H29:H43)","v":0}]
["02.1.010"," ","Vorh. Kunststoffrasen einschl. Sandbefüllung ausbauen und entsorgen","Vorhandenen Kunststoffrasen einschl. Sandbefüllung\nKunststoffgranulatbefüllung ausbauen, laden und fachgerecht einer Wiederverwendung / Recycling zuführen.Der Nachweis über ein Recycling mit der Trennung der Infillmaterialien, des Altkunstrasens sowie einer Nachnutzung ist nachzuweisen.\n\nEingebautes Produkt:\nPolytan Liga Turf RS+ 3/8\nProdukt mit Prüfzertifikat, Baujahr ca. 2011\n \nUrsprüngliche Sandverfüllung:\nca. 18 kg/m² Quarzsand\n \nErsthersteller: Polytan",7072,"m2",null,{"$f":"ROUND(E29*G29,2)","v":0},0]
["02.1.020"," ","vorh. elastische Tragschicht schneiden","Vorh. elastische Tragschicht im Bereich des Großspielfeld an beanspruchten Stellen schneiden.",210,"m",null,0,0]
["02.1.030"," ","Vorh. elastische Tragschicht, Stärke 3,5 cm mit Splittanteil  ausbauen","Vorh. elastische Tragschicht, Stärke 3,5 cm, mit Splittanteil, Schnitt in der Vorposition, mit Anhaftungen vom Schotter an der Unterseite ausbauen, laden, transportieren und fachgerecht entsorgen.",800,"m2",null,0,0]
["02.1.040"," ","Vorhandene elastische Tragschicht säubern","Vorhandene elastische Tragschicht Großspielfeld, 35 mm stark, mit Splittanteil, von Verunreinigungen wie Sand- und Gummigranulatresten säubern und die Ebenflächigkeit zusammen mit der Bauleitung mit einer 4,00 m Latte örtlich kontrollieren.",7072,"m2",null,0,0]
["02.1.050"," ","Vorhandene elastische Tragschicht stabilisieren","Vorhandene elastische Tragschicht, im Bereich Großspielfeld, in den besonders stark beanspruchten Bereichen wie Torräume und Elfmeterpunkte mit PU-Bindemittel stabilisieren,\nAuftragsmenge ca. 300 g/m².\nAusführung nur nach Aufforderung durch die Bauleitung.\nAbrechnung nach Bearbeitungsfläche.",3000,"m2",null,0,0]
["02.1.060"," ","Vorhandene Unebenheiten in der elastischen Tragschicht ausgleichen","Vorhandene Unebenheiten in der elastischen Tragschicht Großspielfeld mit einem Quarzsand-Polyurethan-Gemisch nach örtlicher Festlegung ausgleichen.\nAbrechnung nach Bearbeitungsmasse und Vorlage der\nLieferscheine zum Nachweis Materialverbrauch.",4.5,"t",null,0,0]
["02.1.070"," ","Elastikschicht für verfüllten Kunststoffrasen Großspielfeld einbauen","Gebundene-elastische Tragschicht für Kunststoffrasen Großspielfeld (Fußball), wasserdurchlässig auf Tragschicht ohne Bindemittel, im Ortseinbau gemäß DIN 18035-7 wie folgt einbauen.\n\nBindemittel: Polyurethan\n\nElastische Zuschlagstoffe: Elastomere in Granulat- und/oder Faserform\n \nMineralische Gesteinskörnung:\nWiderstand gegen Frost, Kategorie F4 nach TL Gestein StB\n\nTorsionsfestigkeit: gemäß DIN 18035-7\n \nKraftabbau (23 - 40 Grad C): gemäß DIN 18035-7\nFußball 55 % bis 65 %\n\nNenndicke: mindestens 35 mm +/- 15 %\n\nWasserdurchlässigkeit: Wasserinfiltrationsrate\n>= 360 mm/h (>= 2 Liter Prüfflüssigkeit müssen in 5 Minuten abgeflossen sein)\n\nEbenheit: Stichmaße als Grenzwert bei Messpunktabstand\n1 m <=   4 mm\n4 m <= 10 mm\n \nAngebotenes Produkt:\n \n. . . . . . . . . . . . . . . . . . . . . . . . . . . .\n(vom Bieter einzutragen)\n'..........'\u000b \nHersteller:\n \n. . . . . . . . . . . . . . . . . . . . . . . . . . . .\n(vom Bieter einzutragen)\n'..........'\u000b \nEignungsprüfung (Laborprüfung) nach DIN 18035-7\n \nPrüflabor:\n \n. . . . . . . . . . . . . . . . . . . . . . . . . . . .\n(vom Bieter einzutragen)\n'..........'\u000b \nDIN EN ISO/IEC 17025-Registriernummer:\n \n. . . . . . . . . . . . . . . . . . . . . . . . . . . .\n(vom Bieter einzutragen)\n'..........'\u000b \nPrüfzeugnisnummer:\n \n. . . . . . . . . . . . . . . . . . . . . . . . . . . .\n(vom Bieter einzutragen)\n'..........'\u000b \nDatum:\n \n. . . . . . . . . . . . . . . . . . . . . . . . . . . .\n(vom Bieter einzutragen)\n'..........'\u000b \nQualitätsüberwachung der Elastikschicht gemäß DIN 18035-7 ist durch RAL oder gleichwertig nachzuweisen.\nGütenachweis nach RAL 944/2 (Elastikschicht)\n \nPrüflabor:\n \n. . . . . . . . . . . . . . . . . . . . . . . . . . . .\n(vom Bieter einzutragen)\n'..........'\u000b \nDIN EN ISO/IEC 17025-Registriernummer:\n \n. . . . . . . . . . . . . . . . . . . . . . . . . . . .\n(vom Bieter einzutragen)\n'..........'\u000b \nGütezeichennummer:\n \n. . . . . . . . . . . . . . . . . . . . . . . . . . . .\n(vom Bieter einzutragen)\n'..........'\u000b \nGütezeichen gültig bis:\n \n. . . . . . . . . . . . . . . . . . . . . . . . . . . .\n(vom Bieter einzutragen)\n'..........'",600,"m2",null,0,10,null,null,"\n",null,null,"\n",null,null,"\n",null,null,"\n",null,null,"\n",null,null,"\n",null,null,"\n",null,null,"\n",null,null,"\n"]
["02.1.080"," ","Ansatzkante reinigen","Ansatzkante vorhandene elastische Tragschicht Großspielfeld an vorhandener Rinnen- und Kantensteineinfassung von Unkrautbewuchs reinigen.\nDauerunkräuter wie Disteln und Gehölzsämlinge sind einschl. Wurzeln zu entfernen.\nDas Reinigungsgut ist zu laden und abzufahren.",370,"m",null,0,0]
["02.1.090"," ","Kunststoffrasen einbauen","Kunststoffrasen mit Sand gefüllter Polschicht gemäß DIN EN 15330-1, in Anlehnung an Typ 5, liefern und gemäß RAL - GZ 944/3 und 944/5 im Bereich Großspielfeld einbauen.\n \nBei der Verlegung des Kunststoffrasens ist darauf zu achten, dass die Fugenbreite zwischen den einzelnen Bahnen bzw. zwischen eingefügter Markierung und Belag maximal eine Tuftgassenbreite betragen darf.\nDie Breite des Nahtsicherungsbandes muss mindestens\n30 cm betragen und den Nahtbereich etc. gleichmäßig erfassen.\n \nVor dem Ausbringen des Kunststoffrasens ist die ET-Schicht bzw. Elastikschicht von Laub etc. zu reinigen.\nDer Einheitspreis gilt einschl. der erforderlichen Nachbesandung bis zur endgültigen Füllhöhe.\n\nPolmaterial:\tgewünscht ist ein Produkt mit\n\t2 unterschiedlichen Garnstärken und\n\tGarnfunktionen\n\n\tSystem 1: Rasengarn\n\t100 % Polyethylen\n\t6 einzeln extrudierte Monofilamente\n\tohne Fibrillierung, Faserform gerade\n\tDicke: mind. 360 μm\n\tGarngewicht: ca. 13.000 dtex\n\n\tSystem 2: Stützgarn\n\t100 % Polyethylen-Monofilament\n\t4 einzeln extrudierte Monofilamente\n\tohne Fibrillierung,\n\tFaserform gekräuselt,\n\tDicke: mind. 250 μm\n\tGarngewicht: ca. 8.000 dtex\n\n\tGarngewicht gesamt: ca. 21.000 dtex\n\n\tGarneinsatzgewicht: min. 1.590 g/m²\n\nFarbe:\tBiColor\n\nTrägermaterial 1:\t100 %PP-Bändchengewebe, UV-stabil\nTrägermaterial 2:\tPP/PES-Glas-Stabilisierungsträger\n \nRückenausstattung:\n\tLatex- oder Polyurethan-Beschichtung,\n\t>/= 1.000 g/m²\n \nNoppenschenkellänge über Grund:\n\tca. 40 mm\n\nStichzahl:\tca. 18 Stück pro 10 cm\n\nTeilung:\t3/8\"\n\nFüllmaterial:\tSandfüllung in 2 Lagen\n\n\t1. Lage:\n\tQuarzsand, hydroklassiert, 0,3-0,8 mm,\n\tca. 23 kg/m²\n\n\t2. Lage:\n\tSand\n\trundkörnig\n\thydroklassiert,\n\t0,3 - 1,25 m, ca. 8 kg/m²\n \nAngebotenes Produkt Kunststoffrasen:\n \n. . . . . . . . . . . . . . . . . . . . . . . . . . . .\n(vom Bieter einzutragen)\n'..........'\u000b \nHersteller:\n \n. . . . . . . . . . . . . . . . . . . . . . . . . . . .\n(vom Bieter einzutragen)\n'..........'\u000b \nVerlegung durch:\n \n. . . . . . . . . . . . . . . . . . . . . . . . . . . .\n(vom Bieter einzutragen)\n'..........'\u000b \nSystem 1: Rasengarn\nBändchendimension nach RAL GZ 944 Anlage C Tab.1 Zeile 10 oder gleichwertig\n \nmittlere Faserdicke:\n \n. . . . . . . . . . . . . . . . . . . . . . . . . . . .\n(vom Bieter einzutragen)\n'..........'\u000b \nGarngewicht Einzelbändchen:\n \n. . . . . . . . . . . . . . . . . . . . . . . . . . . .\n(vom Bieter einzutragen)\n'..........'\u000b \nQuerschnittsfläche:\n \n. . . . . . . . . . . . . . . . . . . . . . . . . . . .\n(vom Bieter einzutragen)\n'..........'\u000b \nGarngewicht:\n \n. . . . . . . . . . . . . . . . . . . . . . . . . . . .\n(vom Bieter einzutragen)\n'..........'\u000b \n \nSystem 2: Stützgarn\nBändchendimension nach RAL GZ 944 Anlage C Tab.1 Zeile 10 oder gleichwertig\n \nmittlere Faserdicke:\n \n. . . . . . . . . . . . . . . . . . . . . . . . . . . .\n(vom Bieter einzutragen)\n'..........'\u000b \nGarngewicht Einzelbändchen:\n \n. . . . . . . . . . . . . . . . . . . . . . . . . . . .\n(vom Bieter einzutragen)\n'..........'\u000b \nQuerschnittsfläche:\n \n. . . . . . . . . . . . . . . . . . . . . . . . . . . .\n(vom Bieter einzutragen)\n'..........'\u000b \nGarngewicht:\n \n. . . . . . . . . . . . . . . . . . . . . . . . . . . .\n(vom Bieter einzutragen)\n'..........'\u000b \nZusätzliches PE/PES Glasstabilisierungsgewebe vorhanden: ja / nein\n \n. . . . . . . . . . . . . . . . . . . . . . . . . . . .\n(vom Bieter einzutragen)\n'..........'\u000b \nErstmalige Eignungsprüfung nach DIN EN 15330\n \nPrüflabor:\n \n. . . . . . . . . . . . . . . . . . . . . . . . . . . .\n(vom Bieter einzutragen)\n'..........'\u000b \nPrüfzeugnisnummer:\n \n. . . . . . . . . . . . . . . . . . . . . . . . . . . .\n(vom Bieter einzutragen)\n'..........'\u000b \nDatum:\n \n. . . . . . . . . . . . . . . . . . . . . . . . . . . .\n(vom Bieter einzutragen)\n'..........'\u000b \nJährliche Gütesicherung des Kunstrasensystems ist\ndurch die aktuellen RAL-Gütezeichen 944/1 bis 944/5 nachzuweisen.\n \nRAL 944/1 Gesamtsystem\n \nPrüflabor:\n \n. . . . . . . . . . . . . . . . . . . . . . . . . . . .\n(vom Bieter einzutragen)\n'..........'\u000b \nGütezeichennummer:\n \n. . . . . . . . . . . . . . . . . . . . . . . . . . . .\n(vom Bieter einzutragen)\n'..........'\u000b \nGütezeichen gültig bis:\n \n. . . . . . . . . . . . . . . . . . . . . . . . . . . .\n(vom Bieter einzutragen)\n'..........'\u000b \nRAL 944/3 Einzelmodul Kunstrasen\n \nHersteller:\n \n. . . . . . . . . . . . . . . . . . . . . . . . . . . .\n(vom Bieter einzutragen)\n'..........'\u000b \nPrüflabor:\n \n. . . . . . . . . . . . . . . . . . . . . . . . . . . .\n(vom Bieter einzutragen)\n'..........'\u000b \nGütezeichennummer:\n \n. . . . . . . . . . . . . . . . . . . . . . . . . . . .\n(vom Bieter einzutragen)\n'..........'\u000b \nGütezeichen gültig bis:\n \n. . . . . . . . . . . . . . . . . . . . . . . . . . . .\n(vom Bieter einzutragen)\n'..........'\u000b \nRAL 944/4 Einzelmodul natürlicher elastischer Füllstoff\n \nProduktbezeichnung:\n \n. . . . . . . . . . . . . . . . . . . . . . . . . . . .\n(vom Bieter einzutragen)\n'.........'\u000b \nSchüttgewicht:\n \n. . . . . . . . . . . . . . . . . . . . . . . . . . . .\n(vom Bieter einzutragen)\n'.........'\u000b \nHersteller:\n \n. . . . . . . . . . . . . . . . . . . . . . . . . . . .\n(vom Bieter einzutragen)\n'.........'\u000b \nPrüflabor:\n \n. . . . . . . . . . . . . . . . . . . . . . . . . . . .\n(vom Bieter einzutragen)\n'.........' \u000b \nGütezeichennummer:\n \n. . . . . . . . . . . . . . . . . . . . . . . . . . . .\n(vom Bieter einzutragen)\n'.........' \u000b \nGütezeichen gültig bis:\n \n. . . . . . . . . . . . . . . . . . . . . . . . . . . .\n(vom Bieter einzutragen)\n'.........' \u000b \nRAL 944/5 Einzelmodul Verlegung\n \nVerlegebetrieb:\n \n. . . . . . . . . . . . . . . . . . . . . . . . . . . .\n(vom Bieter einzutragen)\n'..........'\u000b \nPrüflabor:\n \n. . . . . . . . . . . . . . . . . . . . . . . . . . . .\n(vom Bieter einzutragen)\n'..........'\u000b \nGütezeichennummer:\n \n. . . . . . . . . . . . . . . . . . . . . . . . . . . .\n(vom Bieter einzutragen)\n'..........'\u000b \nGütezeichen gültig bis:\n \n. . . . . . . . . . . . . . . . . . . . . . . . . . . .\n(vom Bieter einzutragen)\n'..........'",7072,"m2",null,0,32,null,null,"\n",null,null,"\n",null,null,"\n",null,null,"\n",null,null,"\n",null,null,"\n",null,null,"\n",null,null,"\n",null,null,"\n",null,null,"\n",null,null,"\n",null,null,"\n",null,null,"\n",null,null,"\n",null,null,"\n",null,null,"\n",null,null,"\n",null,null,"\n",null,null,"\n",null,null,"\n"]
["02.1.100"," ","Linierung Großspielfeld","Linierung für Großspielfeld gemäß den Vorschriften des DFB fachgerecht einmessen und in den Kunststoffrasenbelag einarbeiten.\nDie Linierung an den Stirnseiten ist einzutuften, die übrigen Linien sind dauerhaft einzukleben.\nElfmeterpunkt eingetuftet in 1,50 x 1,50 m Kunstrasenstück.\nMaterial:\tentsprechend dem Gesamtbelag.\nFarbe:\tweiß.\nBreite:\t12 cm.",700,"m",null,0,0]
["02.1.110"," ","Markierung Jugendfußball auf Großspielfeld","Zusätzliche Markierung auf dem Großspielfeld nach Herstellervorschrift durchführen.\nGestrichelte Linien werden durchgehend gemessen.\nKurze Striche unter 100 cm werden mit je 100 cm ge-\nmessen. Der Einheitspreis gilt einschl. der erforder-\nlichen Einmessung.\n\nMaterial:\twie Position Kunststoffrasen.\n\nArt der Markierung:\tJugendfußball gemäß den Vor-\n\tschriften des DFB fachgerecht\n\teinmessen und in den Belag ein-\n\tgetuftet und teilweise eingeklebt.\n\nFarbe:\tblau.\n\nLinienbreite:\t5 cm.",40,"m",null,0,0]
["02.1.120"," ","Alphasand als Reservemateria","Alphasand als Reservematerial, in Säcken verpackt, in Abstimmung mit der Bauleitung zum Bauhof\nHallostr. 50; 45141 Essen liefern und gegen Quittung abladen.\nZusammensetzung: wie Pos. Kunststoffrasen.\nAnforderungen: wie Pos. Kunststoffrasen.\nKorngröße: wie Pos. Kunststoffrasen.",500,"kg",null,0,0]
["02.1.130"," ","Quarzsand als Reservematerial","Quarzsand als Reservematerial in Abstimmung mit\nder Bauleitung in Säcken zu je 25 kg frei Bauhof\nHallostr. 50; 45141 Essen liefern, gegen Quittung abladen und innerhalb des Bauhofs transportieren.\nTransportweg: bis 500 m.\nZusammensetzung: wie Pos. Kunststoffrasen.\nAnforderungen: wie Pos. Kunststoffrasen.\nKorngröße: wie Pos. Kunststoffrasen.",500,"kg",null,0,0]
["02.1.140"," ","Fußballtor (5,00*2,00 m) aus Aluminium liefern und aufstellen","Jugend-Fußballtor aus Aluminium,\nfreistehend, TÜV geprüft mit TÜV-Zertifikat\nGröße der Tore 5,00m x 2,00m mit ovalem \nBodenrahmen 1,50m\nobere Ausladung:\t0,80m\u000buntere Ausladung:\t1,50m\nIn einem Stück verschweißt. Netzbügel 60 x mind 3 mm.\nMit eingefräster Netzaufhängung im Tor- und Bodenrahmen, Netzhaken 6mm\nTorbügel in den Tor- und Bodenrahmen eingelassen, Tragegriffe,\nVerstärkerprofile über die Eckpunkte.\nBodenrahmen mit seitlichen Tragegriffen.\nEinzelgewichte mit einem Gesamtgewicht von 160 kg zur festen Montage am hinteren Bodenrahmen und 4 Stück vollausgeschäumte Lufträder je Tor.\nAusführung als vollausgeschäumte Räder.\nJugendtor der Breite nach fahrbar.\nJugendtornetze aus Polypropylen 4 mm\nFarbe: weiß\nliefern, aufstellen:\nAngebotenes Produkt\n\n..................................\nvom Bieter einzutragen.\n'..........'",2,"St",null,0,1]
["02.1.150"," ","Fußballtor (7,32 x 2,44 m) aus Aluminium","Fußballtor (7,32 x 2,44 m) aus Aluminium\nfür die Montage in Bodenhülsen,\nmit Netzbügel oben (keine Netzstangen!), \nTorrahmen mit verschweißten Gehrungen. \nProfil : 100 x 120 mm\nWandstärke: 2,5 mm \nFarbe: weiß.\n\nMit Sicherheits-Netzaufhängung TÜV-Zertifikat und \nGS-Zeichen nach DIN 748 einschließlich:\npassender Abdichtungsmanschetten für die Pfosten \nzur Verhinderung des Eindringens von Feinpartikeln \nzwischen Bodenhülse und Torpfosten.\nMaterial: Aluminium, ca. 8 mm stark,\n in den Torpfosten eingelassen.\n\nEinschließlich Bodenrahmen aus Aluminium, \naus Quadratprofil mit abgerundeten Kanten, \nin einem Stück verschweißt.\n\nAusladung verstellbar von 1,50 bis 2,00 m, hochklappbar. \nGelenkstück in den Pfosten eingearbeitet,\nmit integrierter Sicherheits-Netzaufhängung im Profil.\n\nKunststoffummanteltes Stahlseil zur Netzbefestigung \neinschl. aller Befestigungs-Kleinteile, passend zum \nBodenrahmen.\n\nEinschließlich:\nFußballtornetz aus Polypropylen 4 mm\nMaße: passend zu dem beschriebenen Tor,\nFarbe: nach Wunsch des Vereins - Abstimmung vor \nBestellung!\n\nLiefern und in vorhandene Hülsen einbauen.\nAngebotenes Produkt\n\n..................................\nvom Bieter einzutragen.\n'..........'",2,"St",null,0,1]
["02.2","2","Stundenlohnarbeiten","Stundenlohnarbeiten",null,null,null,{"$f":"SUM(H46:H49)","v":0}]
["02.2.010","I","Anmerkungen","In den nachfolgend genannten Positionen Stundenlohn-\narbeiten sind sämtliche Aufwendungen für Einsatz, Betriebs- und Gerätevorhaltekosten und die Kosten für das Bedienungspersonal enthalten.\n \nAbgerechnet wird nach den tatsächlich geleisteten\nArbeits- bzw. Einsatzstunden.\n \nStundenlohnarbeiten dürfen nur auf Anordnung des\nAuftraggebers durchgeführt werden. Nachweise über\nStundenlohnarbeiten sind spätestens am darauffolgenden\nTage der Bauleitung in zweifacher Ausfertigung zur\nAnerkennung vorzulegen.\n \nAuf den Stundenlohnzettel hat der Auftragnehmer die\nLeistungen der einzelnen Arbeiter getrennt nach\nBerufsgruppen gesondert aufzuführen. Stellt sich bei\nder Rechnungsprüfung oder bei der späteren Nach-\nprüfung heraus, dass die im Stundenlohn abgerechnete Leistung bereits zu anderen Vertragsleistungen gehört, so werden die Stundenlohnarbeiten nicht vergütet, auch wenn die Stundenlohnzettel schriftlich anerkannt worden sind.",null,null,null,null,0]
["02.2.010"," ","Facharbeiter","Facharbeiter für Sonderarbeiten nach Angabe der Bauleitung.",5,"h",null,{"$f":"ROUND(E46*G46,2)","v":0},0]
["02.2.020"," ","Arbeiter","Arbeiter für Sonderarbeiten wie vor.",5,"h",null,{"$f":"ROUND(E47*G47,2)","v":0},0]
["02.2.030"," ","Radlader einschl. Fahrer","Radlader einschl. Fahrer, über 18 bis 37 KW,\nfür Sonderarbeiten wie vor.",5,"h",null,{"$f":"ROUND(E48*G48,2)","v":0},0]
["02.2.040"," ","LKW einschl. Fahrer","LKW einschl. Fahrer, Nutzlast über 5 bis 8 t für Sonderarbeiten wie vor.",5,"h",null,{"$f":"ROUND(E49*G49,2)","v":0},0]
["03","1","Teillos 3-Großspielfeld Lichtenhorst",null,null,null,null,{"$f":"SUM(H52:H66)+SUM(H69:H72)","v":0}]
["03.1","2","Kunststoffrasenarbeiten",null,null,null,null,{"$f":"SUM(H52:H66)","v":0}]
["03.1.010"," ","Vorh. Kunststoffrasen einschl. Sandbefüllung ausbauen und entsorgen","Vorhandenen Kunststoffrasen einschl. Sandbefüllung und Kunststoffgranulatbefüllung ausbauen, laden und fachgerecht einer Wiederverwendung / Recycling zuführen.\nDer Nachweis über ein Recycling mit der Trennung der Infillmaterialien, des Altkunstrasens sowie einer Nachnutzung ist nachzuweisen.\n\nVorhandenen Kunststoffrasen einschl. Sandbefüllung und Kunststoffgranulatbefüllung ausbauen, laden und fachgerecht entsorgen.\nEingebautes Produkt: Polytan gekräuselt S/G verf.            Polytan Monotex 3/8\nProdukt mit Prüfzertifikat, Baujahr ca. 2009\nErsthersteller: Polytan",6568.768,"m2",null,{"$f":"ROUND(E52*G52,2)","v":0},0]
["03.1.020"," ","vorh. elastische Tragschicht schneiden","Vorh. elastische Tragschicht im Bereich der Spielfelder an beanspruchten Stellen schneiden.",210,"m",null,0,0]
["03.1.030"," ","Vorh. elastische Tragschicht, Stärke 3,5 cm mit Splittanteil  ausbauen","Vorh. elastische Tragschicht, Stärke 3,5 cm, mit Splittanteil, Schnitt in der Vorposition, mit Anhaftungen vom Schotter an der Unterseite ausbauen, laden, transportieren und fachgerecht entsorgen.",800,"m2",null,0,0]
["03.1.040"," ","Vorhandene elastische Tragschicht säubern","Vorhandene elastische Tragschicht Großspielfeld, 35 mm stark, mit Splittanteil, von Verunreinigungen wie Sand- und Gummigranulatresten säubern und die Ebenflächigkeit zusammen mit der Bauleitung mit einer 4,00 m Latte örtlich kontrollieren.",6568.768,"m2",null,0,0]
["03.1.050"," ","Vorhandene elastische Tragschicht stabilisieren","Vorhandene elastische Tragschicht, im Bereich Großspielfeld, in den besonders stark beanspruchten Bereichen wie Torräume und Elfmeterpunkte mit PU-Bindemittel stabilisieren,\nAuftragsmenge ca. 300 g/m².\nAusführung nur nach Aufforderung durch die Bauleitung.\nAbrechnung nach Bearbeitungsfläche.",3000,"m2",null,0,0]
["03.1.060"," ","Vorhandene Unebenheiten in der elastischen Tragschicht ausgleichen","Vorhandene Unebenheiten in der elastischen Tragschicht Großspielfeld mit einem Quarzsand-Polyurethan-Gemisch nach örtlicher Festlegung ausgleichen.\nAbrechnung nach Bearbeitungsmasse und Vorlage der\nLieferscheine zum Nachweis Materialverbrauch.",4.5,"t",null,0,0]
["03.1.070"," ","Elastikschicht für verfüllten Kunststoffrasen Großspielfeld einbauen","Gebundene-elastische Tragschicht für Kunststoffrasen Großspielfeld (Fußball), wasserdurchlässig auf Tragschicht ohne Bindemittel, im Ortseinbau gemäß DIN 18035-7 wie folgt einbauen.\n\nBindemittel: Polyurethan\n\nElastische Zuschlagstoffe: Elastomere in Granulat- und/oder Faserform\n \nMineralische Gesteinskörnung:\nWiderstand gegen Frost, Kategorie F4 nach TL Gestein StB\n\nTorsionsfestigkeit: gemäß DIN 18035-7\n \nKraftabbau (23 - 40 Grad C): gemäß DIN 18035-7\nFußball 55 % bis 65 %\n\nNenndicke: mindestens 35 mm +/- 15 %\n\nWasserdurchlässigkeit: Wasserinfiltrationsrate\n>= 360 mm/h (>= 2 Liter Prüfflüssigkeit müssen in 5 Minuten abgeflossen sein)\n\nEbenheit: Stichmaße als Grenzwert bei Messpunktabstand\n1 m <=   4 mm\n4 m <= 10 mm\n \nAngebotenes Produkt:\n \n. . . . . . . . . . . . . . . . . . . . . . . . . . . .\n(vom Bieter einzutragen)\n'..........'\u000b \nHersteller:\n \n. . . . . . . . . . . . . . . . . . . . . . . . . . . .\n(vom Bieter einzutragen)\n'..........'\u000b \nEignungsprüfung (Laborprüfung) nach DIN 18035-7\n \nPrüflabor:\n \n. . . . . . . . . . . . . . . . . . . . . . . . . . . .\n(vom Bieter einzutragen)\n'..........'\u000b \nDIN EN ISO/IEC 17025-Registriernummer:\n \n. . . . . . . . . . . . . . . . . . . . . . . . . . . .\n(vom Bieter einzutragen)\n'..........'\u000b \nPrüfzeugnisnummer:\n \n. . . . . . . . . . . . . . . . . . . . . . . . . . . .\n(vom Bieter einzutragen)\n'..........'\u000b \nDatum:\n \n. . . . . . . . . . . . . . . . . . . . . . . . . . . .\n(vom Bieter einzutragen)\n'..........'\u000b \nQualitätsüberwachung der Elastikschicht gemäß DIN 18035-7 ist durch RAL oder gleichwertig nachzuweisen.\nGütenachweis nach RAL 944/2 (Elastikschicht)\n \nPrüflabor:\n \n. . . . . . . . . . . . . . . . . . . . . . . . . . . .\n(vom Bieter einzutragen)\n'..........'\u000b \nDIN EN ISO/IEC 17025-Registriernummer:\n \n. . . . . . . . . . . . . . . . . . . . . . . . . . . .\n(vom Bieter einzutragen)\n'..........'\u000b \nGütezeichennummer:\n \n. . . . . . . . . . . . . . . . . . . . . . . . . . . .\n(vom Bieter einzutragen)\n'..........'\u000b \nGütezeichen gültig bis:\n \n. . . . . . . . . . . . . . . . . . . . . . . . . . . .\n(vom Bieter einzutragen)\n'..........'",800,"m2",null,0,10,null,null,"\n",null,null,"\n",null,null,"\n",null,null,"\n",null,null,"\n",null,null,"\n",null,null,"\n",null,null,"\n",null,null,"\n"]
["03.1.080"," ","Ansatzkante reinigen","Ansatzkante vorhandene elastische Tragschicht Großspielfeld an vorhandener Rinnen- und Kantensteineinfassung von Unkrautbewuchs reinigen.\nDauerunkräuter wie Disteln und Gehölzsämlinge sind einschl. Wurzeln zu entfernen.\nDas Reinigungsgut ist zu laden und abzufahren.",370,"m",null,0,0]
["03.1.090"," ","Kunststoffrasen einbauen","Kunststoffrasen mit Sand gefüllter Polschicht gemäß DIN EN 15330-1, in Anlehnung an Typ 5, liefern und gemäß RAL - GZ 944/3 und 944/5 im Bereich Großspielfeld einbauen.\n \nBei der Verlegung des Kunststoffrasens ist darauf zu achten, dass die Fugenbreite zwischen den einzelnen Bahnen bzw. zwischen eingefügter Markierung und Belag maximal eine Tuftgassenbreite betragen darf.\nDie Breite des Nahtsicherungsbandes muss mindestens\n30 cm betragen und den Nahtbereich etc. gleichmäßig erfassen.\n \nVor dem Ausbringen des Kunststoffrasens ist die ET-Schicht bzw. Elastikschicht von Laub etc. zu reinigen.\nDer Einheitspreis gilt einschl. der erforderlichen Nachbesandung bis zur endgültigen Füllhöhe.\n\nPolmaterial:\tgewünscht ist ein Produkt mit\n\t2 unterschiedlichen Garnstärken und\n\tGarnfunktionen\n\n\tSystem 1: Rasengarn\n\t100 % Polyethylen\n\t6 einzeln extrudierte Monofilamente\n\tohne Fibrillierung, Faserform gerade\n\tDicke: mind. 360 μm\n\tGarngewicht: ca. 13.000 dtex\n\n\tSystem 2: Stützgarn\n\t100 % Polyethylen-Monofilament\n\t4 einzeln extrudierte Monofilamente\n\tohne Fibrillierung,\n\tFaserform gekräuselt,\n\tDicke: mind. 250 μm\n\tGarngewicht: ca. 8.000 dtex\n\n\tGarngewicht gesamt: ca. 21.000 dtex\n\n\tGarneinsatzgewicht: min. 1.590 g/m²\n\nFarbe:\tBiColor\n\nTrägermaterial 1:\t100 %PP-Bändchengewebe, UV-stabil\nTrägermaterial 2:\tPP/PES-Glas-Stabilisierungsträger\n \nRückenausstattung:\n\tLatex- oder Polyurethan-Beschichtung,\n\t>/= 1.000 g/m²\n \nNoppenschenkellänge über Grund:\n\tca. 40 mm\n\nStichzahl:\tca. 18 Stück pro 10 cm\n\nTeilung:\t3/8\"\n\nFüllmaterial:\tSandfüllung in 2 Lagen\n\n\t1. Lage:\n\tQuarzsand, hydroklassiert, 0,3-0,8 mm,\n\tca. 23 kg/m²\n\n\t2. Lage:\n\tSand\n\trundkörnig\n\thydroklassiert,\n\t0,3 - 1,25 m, ca. 8 kg/m²\n \nAngebotenes Produkt Kunststoffrasen:\n \n. . . . . . . . . . . . . . . . . . . . . . . . . . . .\n(vom Bieter einzutragen)\n'..........'\u000b \nHersteller:\n \n. . . . . . . . . . . . . . . . . . . . . . . . . . . .\n(vom Bieter einzutragen)\n'..........'\u000b \nVerlegung durch:\n \n. . . . . . . . . . . . . . . . . . . . . . . . . . . .\n(vom Bieter einzutragen)\n'..........'\u000b \nSystem 1: Rasengarn\nBändchendimension nach RAL GZ 944 Anlage C Tab.1 Zeile 10 oder gleichwertig\n \nmittlere Faserdicke:\n \n. . . . . . . . . . . . . . . . . . . . . . . . . . . .\n(vom Bieter einzutragen)\n'..........'\u000b \nGarngewicht Einzelbändchen:\n \n. . . . . . . . . . . . . . . . . . . . . . . . . . . .\n(vom Bieter einzutragen)\n'..........'\u000b \nQuerschnittsfläche:\n \n. . . . . . . . . . . . . . . . . . . . . . . . . . . .\n(vom Bieter einzutragen)\n'..........'\u000b \nGarngewicht:\n \n. . . . . . . . . . . . . . . . . . . . . . . . . . . .\n(vom Bieter einzutragen)\n'..........'\u000b \n \nSystem 2: Stützgarn\nBändchendimension nach RAL GZ 944 Anlage C Tab.1 Zeile 10 oder gleichwertig\n \nmittlere Faserdicke:\n \n. . . . . . . . . . . . . . . . . . . . . . . . . . . .\n(vom Bieter einzutragen)\n'..........'\u000b \nGarngewicht Einzelbändchen:\n \n. . . . . . . . . . . . . . . . . . . . . . . . . . . .\n(vom Bieter einzutragen)\n'..........'\u000b \nQuerschnittsfläche:\n \n. . . . . . . . . . . . . . . . . . . . . . . . . . . .\n(vom Bieter einzutragen)\n'..........'\u000b \nGarngewicht:\n \n. . . . . . . . . . . . . . . . . . . . . . . . . . . .\n(vom Bieter einzutragen)\n'..........'\u000b \nZusätzliches PE/PES Glasstabilisierungsgewebe vorhanden: ja / nein\n \n. . . . . . . . . . . . . . . . . . . . . . . . . . . .\n(vom Bieter einzutragen)\n'..........'\u000b \nErstmalige Eignungsprüfung nach DIN EN 15330\n \nPrüflabor:\n \n. . . . . . . . . . . . . . . . . . . . . . . . . . . .\n(vom Bieter einzutragen)\n'..........'\u000b \nPrüfzeugnisnummer:\n \n. . . . . . . . . . . . . . . . . . . . . . . . . . . .\n(vom Bieter einzutragen)\n'..........'\u000b \nDatum:\n \n. . . . . . . . . . . . . . . . . . . . . . . . . . . .\n(vom Bieter einzutragen)\n'..........'\u000b \nJährliche Gütesicherung des Kunstrasensystems ist\ndurch die aktuellen RAL-Gütezeichen 944/1 bis 944/5 nachzuweisen.\n \nRAL 944/1 Gesamtsystem\n \nPrüflabor:\n \n. . . . . . . . . . . . . . . . . . . . . . . . . . . .\n(vom Bieter einzutragen)\n'..........'\u000b \nGütezeichennummer:\n \n. . . . . . . . . . . . . . . . . . . . . . . . . . . .\n(vom Bieter einzutragen)\n'..........'\u000b \nGütezeichen gültig bis:\n \n. . . . . . . . . . . . . . . . . . . . . . . . . . . .\n(vom Bieter einzutragen)\n'..........'\u000b \nRAL 944/3 Einzelmodul Kunstrasen\n \nHersteller:\n \n. . . . . . . . . . . . . . . . . . . . . . . . . . . .\n(vom Bieter einzutragen)\n'..........'\u000b \nPrüflabor:\n \n. . . . . . . . . . . . . . . . . . . . . . . . . . . .\n(vom Bieter einzutragen)\n'..........'\u000b \nGütezeichennummer:\n \n. . . . . . . . . . . . . . . . . . . . . . . . . . . .\n(vom Bieter einzutragen)\n'..........'\u000b \nGütezeichen gültig bis:\n \n. . . . . . . . . . . . . . . . . . . . . . . . . . . .\n(vom Bieter einzutragen)\n'..........'\u000b \nRAL 944/4 Einzelmodul natürlicher elastischer Füllstoff\n \nProduktbezeichnung:\n \n. . . . . . . . . . . . . . . . . . . . . . . . . . . .\n(vom Bieter einzutragen)\n'.........'\u000b \nSchüttgewicht:\n \n. . . . . . . . . . . . . . . . . . . . . . . . . . . .\n(vom Bieter einzutragen)\n'.........'\u000b \nHersteller:\n \n. . . . . . . . . . . . . . . . . . . . . . . . . . . .\n(vom Bieter einzutragen)\n'.........'\u000b \nPrüflabor:\n \n. . . . . . . . . . . . . . . . . . . . . . . . . . . .\n(vom Bieter einzutragen)\n'.........' \u000b \nGütezeichennummer:\n \n. . . . . . . . . . . . . . . . . . . . . . . . . . . .\n(vom Bieter einzutragen)\n'.........' \u000b \nGütezeichen gültig bis:\n \n. . . . . . . . . . . . . . . . . . . . . . . . . . . .\n(vom Bieter einzutragen)\n'.........' \u000b \nRAL 944/5 Einzelmodul Verlegung\n \nVerlegebetrieb:\n \n. . . . . . . . . . . . . . . . . . . . . . . . . . . .\n(vom Bieter einzutragen)\n'..........'\u000b \nPrüflabor:\n \n. . . . . . . . . . . . . . . . . . . . . . . . . . . .\n(vom Bieter einzutragen)\n'..........'\u000b \nGütezeichennummer:\n \n. . . . . . . . . . . . . . . . . . . . . . . . . . . .\n(vom Bieter einzutragen)\n'..........'\u000b \nGütezeichen gültig bis:\n \n. . . . . . . . . . . . . . . . . . . . . . . . . . . .\n(vom Bieter einzutragen)\n'..........'",6568.768,"m2",null,0,32,null,null,"\n",null,null,"\n",null,null,"\n",null,null,"\n",null,null,"\n",null,null,"\n",null,null,"\n",null,null,"\n",null,null,"\n",null,null,"\n",null,null,"\n",null,null,"\n",null,null,"\n",null,null,"\n",null,null,"\n",null,null,"\n",null,null,"\n",null,null,"\n",null,null,"\n",null,null,"\n"]
["03.1.100"," ","Linierung Großspielfeld","Linierung für Großspielfeld gemäß den Vorschriften des DFB fachgerecht einmessen und in den Kunststoffrasenbelag einarbeiten.\nDie Linierung an den Längs- und Stirnseiten ist einzutuften, die übrigen Linien sind dauerhaft einzukleben.\nElfmeterpunkt eingetuftet in 1,50 x 1,50 m Kunstrasenstück.\nMaterial:\tentsprechend dem Gesamtbelag.\nFarbe:\tweiß.\nBreite:\t12 cm.",730,"m",null,0,0]
["03.1.110"," ","Markierung Jugendfußball auf Großspielfeld","Zusätzliche Markierung auf dem Großspielfeld nach Herstellervorschrift durchführen.\nGestrichelte Linien werden durchgehend gemessen.\nKurze Striche unter 100 cm werden mit je 100 cm ge-\nmessen. Der Einheitspreis gilt einschl. der erforder-\nlichen Einmessung.\n\nMaterial:\twie Position Kunststoffrasen.\n\nArt der Markierung:\tJugendfußball gemäß den Vor-\n\tschriften des DFB fachgerecht\n\teinmessen und in den Belag ein-\n\tgetuftet und teilweise eingeklebt.\n\nFarbe:\tblau.\n\nLinienbreite:\t5 cm.",80,"m",null,0,0]
["03.1.120"," ","Alphasand als Reservematerial","Alphasand als Reservematerial, in Säcken verpackt, in Abstimmung mit der Bauleitung zum Bauhof\nHallostr. 50; 45141 Essen liefern und gegen Quittung abladen.\nZusammensetzung: wie Pos. Kunststoffrasen.\nAnforderungen: wie Pos. Kunststoffrasen.\nKorngröße: wie Pos. Kunststoffrasen.",500,"kg",null,0,0]
["03.1.130"," ","Quarzsand als Reservematerial","Quarzsand als Reservematerial in Abstimmung mit\nder Bauleitung in Säcken zu je 25 kg frei Bauhof\nHallostr. 50; 45141 Essen liefern, gegen Quittung abladen und innerhalb des Bauhofs transportieren.\nTransportweg: bis 500 m.\nZusammensetzung: wie Pos. Kunststoffrasen.\nAnforderungen: wie Pos. Kunststoffrasen.\nKorngröße: wie Pos. Kunststoffrasen.",500,"kg",null,0,0]
["03.1.140"," ","Fußballtor (5,00*2,00 m) aus Aluminium liefern und aufstellen","Jugend-Fußballtor aus Aluminium,\nfreistehend, TÜV geprüft mit TÜV-Zertifikat\nGröße der Tore 5,00m x 2,00m mit ovalem \nBodenrahmen 1,50m\nobere Ausladung:\t0,80m\u000buntere Ausladung:\t1,50m\nIn einem Stück verschweißt. Netzbügel 60 x mind 3 mm.\nMit eingefräster Netzaufhängung im Tor- und Bodenrahmen, Netzhaken 6mm\nTorbügel in den Tor- und Bodenrahmen eingelassen, Tragegriffe,\nVerstärkerprofile über die Eckpunkte.\nBodenrahmen mit seitlichen Tragegriffen.\nEinzelgewichte mit einem Gesamtgewicht von 160 kg zur festen Montage am hinteren Bodenrahmen und 4 Stück vollausgeschäumte Lufträder je Tor.\nAusführung als vollausgeschäumte Räder.\nJugendtor der Breite nach fahrbar.\nJugendtornetze aus Polypropylen 4 mm\nFarbe: weiß\nliefern, aufstellen:\nAngebotenes Produkt\n\n....................................\nvom Bieter einzutragen.\n'..........'",2,"St",null,0,1]
["03.1.150"," ","Fußballtor (7,32 x 2,44 m) aus Aluminium","Fußballtor (7,32 x 2,44 m) aus Aluminium\nfür die Montage in Bodenhülsen,\nmit Netzbügel oben (keine Netzstangen!), \nTorrahmen mit verschweißten Gehrungen. \nProfil : 100 x 120 mm\nWandstärke: 2,5 mm \nFarbe: weiß.\n\nMit Sicherheits-Netzaufhängung TÜV-Zertifikat und \nGS-Zeichen nach DIN 748 einschließlich:\npassender Abdichtungsmanschetten für die Pfosten \nzur Verhinderung des Eindringens von Feinpartikeln \nzwischen Bodenhülse und Torpfosten.\nMaterial: Aluminium, ca. 8 mm stark,\n in den Torpfosten eingelassen.\n\nEinschließlich Bodenrahmen aus Aluminium, \naus Quadratprofil mit abgerundeten Kanten, \nin einem Stück verschweißt.\n\nAusladung verstellbar von 1,50 bis 2,00 m, hochklappbar. \nGelenkstück in den Pfosten eingearbeitet,\nmit integrierter Sicherheits-Netzaufhängung im Profil.\n\nKunststoffummanteltes Stahlseil zur Netzbefestigung \neinschl. aller Befestigungs-Kleinteile, passend zum \nBodenrahmen.\n\nEinschließlich:\nFußballtornetz aus Polypropylen 4 mm\nMaße: passend zu dem beschriebenen Tor,\nFarbe: nach Wunsch des Vereins - Abstimmung vor \nBestellung!\n\n\nLiefern und in vorhandene Hülsen einbauen.\nAngebotenes Produkt\n\n....................................\nvom Bieter einzutragen.\n'..........'",2,"St",null,0,1]
["03.2","2","Stundenlohnarbeiten","Stundenlohnarbeiten",null,null,null,{"$f":"SUM(H69:H72)","v":0}]
["03.2.010","I","Anmerkungen","In den nachfolgend genannten Positionen Stundenlohn-\narbeiten sind sämtliche Aufwendungen für Einsatz, Betriebs- und Gerätevorhaltekosten und die Kosten für das Bedienungspersonal enthalten.\n \nAbgerechnet wird nach den tatsächlich geleisteten\nArbeits- bzw. Einsatzstunden.\n \nStundenlohnarbeiten dürfen nur auf Anordnung des\nAuftraggebers durchgeführt werden. Nachweise über\nStundenlohnarbeiten sind spätestens am darauffolgenden\nTage der Bauleitung in zweifacher Ausfertigung zur\nAnerkennung vorzulegen.\n \nAuf den Stundenlohnzettel hat der Auftragnehmer die\nLeistungen der einzelnen Arbeiter getrennt nach\nBerufsgruppen gesondert aufzuführen. Stellt sich bei\nder Rechnungsprüfung oder bei der späteren Nach-\nprüfung heraus, dass die im Stundenlohn abgerechnete Leistung bereits zu anderen Vertragsleistungen gehört, so werden die Stundenlohnarbeiten nicht vergütet, auch wenn die Stundenlohnzettel schriftlich anerkannt worden sind.",null,null,null,null,0]
["03.2.010"," ","Facharbeiter","Facharbeiter für Sonderarbeiten nach Angabe der Bauleitung.",5,"h",null,{"$f":"ROUND(E69*G69,2)","v":0},0]
["03.2.020"," ","Arbeiter","Arbeiter für Sonderarbeiten wie vor.",5,"h",null,{"$f":"ROUND(E70*G70,2)","v":0},0]
["03.2.030"," ","Radlader einschl. Fahrer","Radlader einschl. Fahrer, über 18 bis 37 KW,\nfür Sonderarbeiten wie vor.",5,"h",null,{"$f":"ROUND(E71*G71,2)","v":0},0]
["03.2.040"," ","LKW einschl. Fahrer","LKW einschl. Fahrer, Nutzlast über 5 bis 8 t für Sonderarbeiten wie vor.",5,"h",null,{"$f":"ROUND(E72*G72,2)","v":0},0]
["04","1","Teillos 4-Großspielfeld/Segment/Kleinspielfeld Im Löwental",null,null,null,null,{"$f":"SUM(H75:H90)+SUM(H93:H96)","v":0}]
["04.1","2","Kunststoffrasenarbeiten",null,null,null,null,{"$f":"SUM(H75:H90)","v":0}]
["04.1.010"," ","Vorh. Kunststoffrasen einschl. Sandbefüllung ausbauen und entsorgen","Vorhandenen Kunststoffrasen einschl. Sandbefüllung und Kunststoffgranulatbefüllung ausbauen, laden und fachgerecht einer Wiederverwendung / Recycling zuführen.\nDer Nachweis über ein Recycling mit der Trennung der Infillmaterialien, des Altkunstrasens sowie einer Nachnutzung ist nachzuweisen..\n\nEingebautes Produkt:\nPolytan LigaGrass 3/8\nProdukt mit Prüfzertifikat, Baujahr ca. 2011\n \nUrsprüngliche Sandverfüllung:\nca. 18 kg/m² Quarzsand\n \nUrsprüngliche Granulatverfüllung ca. 4 kg/m² TPE N\nErsthersteller: Ploytan",11881.03,"m2",null,{"$f":"ROUND(E75*G75,2)","v":0},0]
["04.1.020"," ","vorh. elastische Tragschicht schneiden","Vorh. elastische Tragschicht im Bereich der Spielfelder an beanspruchten Stellen schneiden.",310,"m",null,0,0]
["04.1.030"," ","Vorh. elastische Tragschicht, Stärke 3,5 cm mit Splittanteil  ausbauen","Vorh. elastische Tragschicht, Stärke 3,5 cm, mit Splittanteil, Schnitt in der Vorposition, mit Anhaftungen vom Schotter an der Unterseite ausbauen, laden, transportieren und fachgerecht entsorgen.",1100,"m2",null,0,0]
["04.1.040"," ","Vorhandene elastische Tragschicht säubern","Vorhandene elastische Tragschicht Großspielfeld, 35 mm stark, mit Splittanteil, von Verunreinigungen wie Sand- und Gummigranulatresten säubern und die Ebenflächigkeit zusammen mit der Bauleitung mit einer 4,00 m Latte örtlich kontrollieren.",11881.03,"m2",null,0,0]
["04.1.050"," ","Vorhandene elastische Tragschicht stabilisieren","Vorhandene elastische Tragschicht, im Bereich Großspielfeld, in den besonders stark beanspruchten Bereichen wie Torräume und\nElfmeterpunkte mit PU-Bindemittel stabilisieren,\nAuftragsmenge ca. 300 g/m².\nAusführung nur nach Aufforderung durch die Bauleitung.\nAbrechnung nach Bearbeitungsfläche.",3500,"m2",null,0,0]
["04.1.060"," ","Vorhandene Unebenheiten in der elastischen Tragschicht ausgleichen","Vorhandene Unebenheiten in der elastischen Tragschicht Großspielfeld mit einem Quarzsand-Polyurethan-Gemisch nach örtlicher Festlegung ausgleichen.\nAbrechnung nach Bearbeitungsmasse und Vorlage der\nLieferscheine zum Nachweis Materialverbrauch.",6,"t",null,0,0]
["04.1.070"," ","Elastikschicht für verfüllten Kunststoffrasen Großspielfeld einbauen","Gebundene-elastische Tragschicht für Kunststoffrasen Großspielfeld (Fußball), wasserdurchlässig auf Tragschicht ohne Bindemittel, im Ortseinbau gemäß DIN 18035-7 wie folgt einbauen.\n\nBindemittel: Polyurethan\n\nElastische Zuschlagstoffe: Elastomere in Granulat- und/oder Faserform\n \nMineralische Gesteinskörnung:\nWiderstand gegen Frost, Kategorie F4 nach TL Gestein StB\n\nTorsionsfestigkeit: gemäß DIN 18035-7\n \nKraftabbau (23 - 40 Grad C): gemäß DIN 18035-7\nFußball 55 % bis 65 %\n\nNenndicke: mindestens 35 mm +/- 15 %\n\nWasserdurchlässigkeit: Wasserinfiltrationsrate\n>= 360 mm/h (>= 2 Liter Prüfflüssigkeit müssen in 5 Minuten abgeflossen sein)\n\nEbenheit: Stichmaße als Grenzwert bei Messpunktabstand\n1 m <=   4 mm\n4 m <= 10 mm\n \nAngebotenes Produkt:\n \n. . . . . . . . . . . . . . . . . . . . . . . . . . . .\n(vom Bieter einzutragen)\n'..........'\u000b \nHersteller:\n \n. . . . . . . . . . . . . . . . . . . . . . . . . . . .\n(vom Bieter einzutragen)\n'..........'\u000b \nEignungsprüfung (Laborprüfung) nach DIN 18035-7\n \nPrüflabor:\n \n. . . . . . . . . . . . . . . . . . . . . . . . . . . .\n(vom Bieter einzutragen)\n'..........'\u000b \nDIN EN ISO/IEC 17025-Registriernummer:\n \n. . . . . . . . . . . . . . . . . . . . . . . . . . . .\n(vom Bieter einzutragen)\n'..........'\u000b \nPrüfzeugnisnummer:\n \n. . . . . . . . . . . . . . . . . . . . . . . . . . . .\n(vom Bieter einzutragen)\n'..........'\u000b \nDatum:\n \n. . . . . . . . . . . . . . . . . . . . . . . . . . . .\n(vom Bieter einzutragen)\n'..........'\u000b \nQualitätsüberwachung der Elastikschicht gemäß DIN 18035-7 ist durch RAL oder gleichwertig nachzuweisen.\nGütenachweis nach RAL 944/2 (Elastikschicht)\n \nPrüflabor:\n \n. . . . . . . . . . . . . . . . . . . . . . . . . . . .\n(vom Bieter einzutragen)\n'..........'\u000b \nDIN EN ISO/IEC 17025-Registriernummer:\n \n. . . . . . . . . . . . . . . . . . . . . . . . . . . .\n(vom Bieter einzutragen)\n'..........'\u000b \nGütezeichennummer:\n \n. . . . . . . . . . . . . . . . . . . . . . . . . . . .\n(vom Bieter einzutragen)\n'..........'\u000b \nGütezeichen gültig bis:\n \n. . . . . . . . . . . . . . . . . . . . . . . . . . . .\n(vom Bieter einzutragen)\n'..........'",1100,"m2",null,0,10,null,null,"\n",null,null,"\n",null,null,"\n",null,null,"\n",null,null,"\n",null,null,"\n",null,null,"\n",null,null,"\n",null,null,"\n"]
["04.1.080"," ","Ansatzkante reinigen","Ansatzkante vorhandene elastische Tragschicht Großspielfeld an vorhandener Rinnen- und Kantensteineinfassung von Unkrautbewuchs reinigen.\nDauerunkräuter wie Disteln und Gehölzsämlinge sind einschl. Wurzeln zu entfernen.\nDas Reinigungsgut ist zu laden und abzufahren.",600,"m",null,0,0]
["04.1.090"," ","Kunststoffrasen einbauen","Kunststoffrasen mit Sand gefüllter Polschicht gemäß DIN EN 15330-1, in Anlehnung an Typ 5, liefern und gemäß RAL - GZ 944/3 und 944/5 im Bereich Großspielfeld einbauen.\n \nBei der Verlegung des Kunststoffrasens ist darauf zu achten, dass die Fugenbreite zwischen den einzelnen Bahnen bzw. zwischen eingefügter Markierung und Belag maximal eine Tuftgassenbreite betragen darf.\nDie Breite des Nahtsicherungsbandes muss mindestens\n30 cm betragen und den Nahtbereich etc. gleichmäßig erfassen.\n \nVor dem Ausbringen des Kunststoffrasens ist die ET-Schicht bzw. Elastikschicht von Laub etc. zu reinigen.\nDer Einheitspreis gilt einschl. der erforderlichen Nachbesandung bis zur endgültigen Füllhöhe.\n\nPolmaterial:\tgewünscht ist ein Produkt mit\n\t2 unterschiedlichen Garnstärken und\n\tGarnfunktionen\n\n\tSystem 1: Rasengarn\n\t100 % Polyethylen\n\t6 einzeln extrudierte Monofilamente\n\tohne Fibrillierung, Faserform gerade\n\tDicke: mind. 360 μm\n\tGarngewicht: ca. 13.000 dtex\n\n\tSystem 2: Stützgarn\n\t100 % Polyethylen-Monofilament\n\t4 einzeln extrudierte Monofilamente\n\tohne Fibrillierung,\n\tFaserform gekräuselt,\n\tDicke: mind. 250 μm\n\tGarngewicht: ca. 8.000 dtex\n\n\tGarngewicht gesamt: ca. 21.000 dtex\n\n\tGarneinsatzgewicht: min. 1.590 g/m²\n\nFarbe:\tBiColor\n\nTrägermaterial 1:\t100 %PP-Bändchengewebe, UV-stabil\nTrägermaterial 2:\tPP/PES-Glas-Stabilisierungsträger\n \nRückenausstattung:\n\tLatex- oder Polyurethan-Beschichtung,\n\t>/= 1.000 g/m²\n \nNoppenschenkellänge über Grund:\n\tca. 40 mm\n\nStichzahl:\tca. 18 Stück pro 10 cm\n\nTeilung:\t3/8\"\n\nFüllmaterial:\tSandfüllung in 2 Lagen\n\n\t1. Lage:\n\tQuarzsand, hydroklassiert, 0,3-0,8 mm,\n\tca. 23 kg/m²\n\n\t2. Lage:\n\tSand\n\trundkörnig\n\thydroklassiert,\n\t0,3 - 1,25 m, ca. 8 kg/m²\n \nAngebotenes Produkt Kunststoffrasen:\n \n. . . . . . . . . . . . . . . . . . . . . . . . . . . .\n(vom Bieter einzutragen)\n'..........'\u000b \nHersteller:\n \n. . . . . . . . . . . . . . . . . . . . . . . . . . . .\n(vom Bieter einzutragen)\n'..........'\u000b \nVerlegung durch:\n \n. . . . . . . . . . . . . . . . . . . . . . . . . . . .\n(vom Bieter einzutragen)\n'..........'\u000b \nSystem 1: Rasengarn\nBändchendimension nach RAL GZ 944 Anlage C Tab.1 Zeile 10 oder gleichwertig\n \nmittlere Faserdicke:\n \n. . . . . . . . . . . . . . . . . . . . . . . . . . . .\n(vom Bieter einzutragen)\n'..........'\u000b \nGarngewicht Einzelbändchen:\n \n. . . . . . . . . . . . . . . . . . . . . . . . . . . .\n(vom Bieter einzutragen)\n'..........'\u000b \nQuerschnittsfläche:\n \n. . . . . . . . . . . . . . . . . . . . . . . . . . . .\n(vom Bieter einzutragen)\n'..........'\u000b \nGarngewicht:\n \n. . . . . . . . . . . . . . . . . . . . . . . . . . . .\n(vom Bieter einzutragen)\n'..........'\u000b \n \nSystem 2: Stützgarn\nBändchendimension nach RAL GZ 944 Anlage C Tab.1 Zeile 10 oder gleichwertig\n \nmittlere Faserdicke:\n \n. . . . . . . . . . . . . . . . . . . . . . . . . . . .\n(vom Bieter einzutragen)\n'..........'\u000b \nGarngewicht Einzelbändchen:\n \n. . . . . . . . . . . . . . . . . . . . . . . . . . . .\n(vom Bieter einzutragen)\n'..........'\u000b \nQuerschnittsfläche:\n \n. . . . . . . . . . . . . . . . . . . . . . . . . . . .\n(vom Bieter einzutragen)\n'..........'\u000b \nGarngewicht:\n \n. . . . . . . . . . . . . . . . . . . . . . . . . . . .\n(vom Bieter einzutragen)\n'..........'\u000b \nZusätzliches PE/PES Glasstabilisierungsgewebe vorhanden: ja / nein\n \n. . . . . . . . . . . . . . . . . . . . . . . . . . . .\n(vom Bieter einzutragen)\n'..........'\u000b \nErstmalige Eignungsprüfung nach DIN EN 15330\n \nPrüflabor:\n \n. . . . . . . . . . . . . . . . . . . . . . . . . . . .\n(vom Bieter einzutragen)\n'..........'\u000b \nPrüfzeugnisnummer:\n \n. . . . . . . . . . . . . . . . . . . . . . . . . . . .\n(vom Bieter einzutragen)\n'..........'\u000b \nDatum:\n \n. . . . . . . . . . . . . . . . . . . . . . . . . . . .\n(vom Bieter einzutragen)\n'..........'\u000b \nJährliche Gütesicherung des Kunstrasensystems ist\ndurch die aktuellen RAL-Gütezeichen 944/1 bis 944/5 nachzuweisen.\n \nRAL 944/1 Gesamtsystem\n \nPrüflabor:\n \n. . . . . . . . . . . . . . . . . . . . . . . . . . . .\n(vom Bieter einzutragen)\n'..........'\u000b \nGütezeichennummer:\n \n. . . . . . . . . . . . . . . . . . . . . . . . . . . .\n(vom Bieter einzutragen)\n'..........'\u000b \nGütezeichen gültig bis:\n \n. . . . . . . . . . . . . . . . . . . . . . . . . . . .\n(vom Bieter einzutragen)\n'..........'\u000b \nRAL 944/3 Einzelmodul Kunstrasen\n \nHersteller:\n \n. . . . . . . . . . . . . . . . . . . . . . . . . . . .\n(vom Bieter einzutragen)\n'..........'\u000b \nPrüflabor:\n \n. . . . . . . . . . . . . . . . . . . . . . . . . . . .\n(vom Bieter einzutragen)\n'..........'\u000b \nGütezeichennummer:\n \n. . . . . . . . . . . . . . . . . . . . . . . . . . . .\n(vom Bieter einzutragen)\n'..........'\u000b \nGütezeichen gültig bis:\n \n. . . . . . . . . . . . . . . . . . . . . . . . . . . .\n(vom Bieter einzutragen)\n'..........'\u000b \nRAL 944/4 Einzelmodul natürlicher elastischer Füllstoff\n \nProduktbezeichnung:\n \n. . . . . . . . . . . . . . . . . . . . . . . . . . . .\n(vom Bieter einzutragen)\n'.........'\u000b \nSchüttgewicht:\n \n. . . . . . . . . . . . . . . . . . . . . . . . . . . .\n(vom Bieter einzutragen)\n'.........'\u000b \nHersteller:\n \n. . . . . . . . . . . . . . . . . . . . . . . . . . . .\n(vom Bieter einzutragen)\n'.........'\u000b \nPrüflabor:\n \n. . . . . . . . . . . . . . . . . . . . . . . . . . . .\n(vom Bieter einzutragen)\n'.........' \u000b \nGütezeichennummer:\n \n. . . . . . . . . . . . . . . . . . . . . . . . . . . .\n(vom Bieter einzutragen)\n'.........' \u000b \nGütezeichen gültig bis:\n \n. . . . . . . . . . . . . . . . . . . . . . . . . . . .\n(vom Bieter einzutragen)\n'.........' \u000b \nRAL 944/5 Einzelmodul Verlegung\n \nVerlegebetrieb:\n \n. . . . . . . . . . . . . . . . . . . . . . . . . . . .\n(vom Bieter einzutragen)\n'..........'\u000b \nPrüflabor:\n \n. . . . . . . . . . . . . . . . . . . . . . . . . . . .\n(vom Bieter einzutragen)\n'..........'\u000b \nGütezeichennummer:\n \n. . . . . . . . . . . . . . . . . . . . . . . . . . . .\n(vom Bieter einzutragen)\n'..........'\u000b \nGütezeichen gültig bis:\n \n. . . . . . . . . . . . . . . . . . . . . . . . . . . .\n(vom Bieter einzutragen)\n'..........'",11881.03,"m2",null,0,32,null,null,"\n",null,null,"\n",null,null,"\n",null,null,"\n",null,null,"\n",null,null,"\n",null,null,"\n",null,null,"\n",null,null,"\n",null,null,"\n",null,null,"\n",null,null,"\n",null,null,"\n",null,null,"\n",null,null,"\n",null,null,"\n",null,null,"\n",null,null,"\n",null,null,"\n",null,null,"\n"]
["04.1.100"," ","Linierung Großspielfeld","Linierung für Großspielfeld gemäß den Vorschriften des DFB fachgerecht einmessen und in den Kunststoffrasenbelag einarbeiten.\nDie Linierung an den  Stirnseiten ist einzutuften, die übrigen Linien sind dauerhaft einzukleben.\nElfmeterpunkt eingetuftet in 1,50 x 1,50 m Kunstrasenstück.\nMaterial:\tentsprechend dem Gesamtbelag.\nFarbe:\tweiß.\nBreite:\t12 cm.",730,"m",null,0,0]
["04.1.110"," ","Markierung Jugendfußball auf Großspielfeld","Zusätzliche Markierung auf dem Großspielfeld nach Herstellervorschrift durchführen.\nGestrichelte Linien werden durchgehend gemessen.\nKurze Striche unter 100 cm werden mit je 100 cm ge-\nmessen. Der Einheitspreis gilt einschl. der erforder-\nlichen Einmessung.\n\nMaterial:\twie Position Kunststoffrasen.\n\nArt der Markierung:\tJugendfußball gemäß den Vor-\n\tschriften des DFB fachgerecht\n\teinmessen und in den Belag ein-\n\tgetuftet und teilweise eingeklebt.\n\nFarbe:\tblau.\n\nLinienbreite:\t5 cm.",50,"m",null,0,0]
["04.1.120"," ","Linierung Kleinspielfeld","Linierung für Kleinspielfeld fachgerecht einmessen und in den Kunststoffrasenbelag einarbeiten.\nDie Linierung an den Längs- und Stirnseiten ist einzutuften, die übrigen Linien sind dauerhaft einzukleben.\nPenaltypunkt eingetuftet in 1,50 x 1,50 m Kunstrasenstück.\nMaterial:\tentsprechend dem Gesamtbelag.\nFarbe:\tweiß.\nBreite:\t12 cm.",300,"m",null,0,0]
["04.1.130"," ","Alphasand als Reservematerial für Groß- und Kleinspielfeld","Alphasand als Reservematerial, in Säcken verpackt, in Abstimmung mit der Bauleitung zum Bauhof\nHallostr. 50; 45141 Essen liefern und gegen Quittung abladen.\nZusammensetzung: wie Pos. Kunststoffrasen.\nAnforderungen: wie Pos. Kunststoffrasen.\nKorngröße: wie Pos. Kunststoffrasen.",500,"kg",null,0,0]
["04.1.140"," ","Quarzsand als Reservematerial für Groß- und Kleinspielfeld","Quarzsand als Reservematerial in Abstimmung mit\nder Bauleitung in Säcken zu je 25 kg frei Bauhof\nHallostr. 50; 45141 Essen  liefern, gegen Quittung abladen und innerhalb des Bauhofs transportieren.\nTransportweg: bis 500 m.\nZusammensetzung: wie Pos. Kunststoffrasen.\nAnforderungen: wie Pos. Kunststoffrasen.\nKorngröße: wie Pos. Kunststoffrasen.",500,"kg",null,0,0]
["04.1.150"," ","Fußballtor (5,00*2,00 m) aus Aluminium liefren und aufstellen","Jugend-Fußballtor aus Aluminium,\nfreistehend, TÜV geprüft mit TÜV-Zertifikat\nGröße der Tore 5,00m x 2,00m mit ovalem \nBodenrahmen 1,50m\nobere Ausladung:\t0,80m\u000buntere Ausladung:\t1,50m\nIn einem Stück verschweißt. Netzbügel 60 x mind 3 mm.\nMit eingefräster Netzaufhängung im Tor- und Bodenrahmen, Netzhaken 6mm\nTorbügel in den Tor- und Bodenrahmen eingelassen, Tragegriffe,\nVerstärkerprofile über die Eckpunkte.\nBodenrahmen mit seitlichen Tragegriffen.\nEinzelgewichte mit einem Gesamtgewicht von 160 kg zur festen Montage am hinteren Bodenrahmen und 4 Stück vollausgeschäumte Lufträder je Tor.\nAusführung als vollausgeschäumte Räder.\nJugendtor der Breite nach fahrbar.\nJugendtornetze aus Polypropylen 4 mm\nFarbe: weiß\nliefern, aufstellen:\nAngebotenes Produkt\n\n...................................\nvom Bieter einzutragen.\n'..........'",4,"St",null,0,1]
["04.1.160"," ","Fußballtor (7,32 x 2,44 m) aus Aluminium","Fußballtor (7,32 x 2,44 m) aus Aluminium\nfür die Montage in Bodenhülsen,\nmit Netzbügel oben (keine Netzstangen!), \nTorrahmen mit verschweißten Gehrungen. \nProfil : 100 x 120 mm\nWandstärke: 2,5 mm \nFarbe: weiß.\n\nMit Sicherheits-Netzaufhängung TÜV-Zertifikat und \nGS-Zeichen nach DIN 748 einschließlich:\npassender Abdichtungsmanschetten für die Pfosten \nzur Verhinderung des Eindringens von Feinpartikeln \nzwischen Bodenhülse und Torpfosten.\nMaterial: Aluminium, ca. 8 mm stark,\n in den Torpfosten eingelassen.\n\nEinschließlich Bodenrahmen aus Aluminium, \naus Quadratprofil mit abgerundeten Kanten, \nin einem Stück verschweißt.\n\nAusladung verstellbar von 1,50 bis 2,00 m, hochklappbar. \nGelenkstück in den Pfosten eingearbeitet,\nmit integrierter Sicherheits-Netzaufhängung im Profil.\n\nKunststoffummanteltes Stahlseil zur Netzbefestigung \neinschl. aller Befestigungs-Kleinteile, passend zum \nBodenrahmen.\n\nEinschließlich:\nFußballtornetz aus Polypropylen 4 mm\nMaße: passend zu dem beschriebenen Tor,\nFarbe: nach Wunsch des Vereins - Abstimmung vor \nBestellung!\n\n\nLiefern und in vorhandene Hülsen einbauen.\nAngebotenes Produkt\n\n...................................\nvom Bieter einzutragen.\n'...'",2,"St",null,0,1]
["04.2","2","Stundenlohnarbeiten","Stundenlohnarbeiten",null,null,null,{"$f":"SUM(H93:H96)","v":0}]
["04.2.010","I","Anmerkungen","In den nachfolgend genannten Positionen Stundenlohn-\narbeiten sind sämtliche Aufwendungen für Einsatz, Betriebs- und Gerätevorhaltekosten und die Kosten für das Bedienungspersonal enthalten.\n \nAbgerechnet wird nach den tatsächlich geleisteten\nArbeits- bzw. Einsatzstunden.\n \nStundenlohnarbeiten dürfen nur auf Anordnung des\nAuftraggebers durchgeführt werden. Nachweise über\nStundenlohnarbeiten sind spätestens am darauffolgenden\nTage der Bauleitung in zweifacher Ausfertigung zur\nAnerkennung vorzulegen.\n \nAuf den Stundenlohnzettel hat der Auftragnehmer die\nLeistungen der einzelnen Arbeiter getrennt nach\nBerufsgruppen gesondert aufzuführen. Stellt sich bei\nder Rechnungsprüfung oder bei der späteren Nach-\nprüfung heraus, dass die im Stundenlohn abgerechnete Leistung bereits zu anderen Vertragsleistungen gehört, so werden die Stundenlohnarbeiten nicht vergütet, auch wenn die Stundenlohnzettel schriftlich anerkannt worden sind.",null,null,null,null,0]
["04.2.010"," ","Facharbeiter","Facharbeiter für Sonderarbeiten nach Angabe der Bauleitung.",5,"h",null,{"$f":"ROUND(E93*G93,2)","v":0},0]
["04.2.020"," ","Arbeiter","Arbeiter für Sonderarbeiten wie vor.",5,"h",null,{"$f":"ROUND(E94*G94,2)","v":0},0]
["04.2.030"," ","Radlader einschl. Fahrer","Radlader einschl. Fahrer, über 18 bis 37 KW,\nfür Sonderarbeiten wie vor.",5,"h",null,{"$f":"ROUND(E95*G95,2)","v":0},0]
["04.2.040"," ","LKW einschl. Fahrer","LKW einschl. Fahrer, Nutzlast über 5 bis 8 t für Sonderarbeiten wie vor.",5,"h",null,{"$f":"ROUND(E96*G96,2)","v":0},0]